Cogmind - Beta 15 X1 @@@ ROGUE MODE // 2024.11.17 @ 02:45:47 Player: H3-RMN Result: Escaped! Performance ------------- Evolutions (9) 4500 Regions Visited (26) 5200 Robots Destroyed (317) 1585 Value Destroyed (16071) 16071 Prototype IDs (113) 2260 Alien Tech Used (12) 2400 Bonus (39768) 39768 TOTAL SCORE: 71784 Bonus ------- High Alert Combat Kills 10774 Follower Combat Kills 2504 Forged Quantum Companion 2000 Subatomizer Sterilization 3000 Entered DSFs 500 Network Hubs Disabled 800 Registered with UFD 300 Met Data Miner 300 Built Enhanced Grunts 300 A7 Reached Mainframe 300 Met R17 at Cetus 500 Found Hidden Lab 3000 Met R17 at Research 2000 Destroyed MAIN.C Guards 500 Met MAIN.C 5000 Destroyed MAIN.C Shell 5000 Win 3000 Friendly Fire -10 Cogmind --------- Core Integrity 157/1600 Matter 286/300 Energy 95/350 System Corruption 13% Temperature Cool (4) Movement Flying (20) Location To Epsilon Eridani Parts ------- > --- POWER (2) -------- (None) > --- PROPULSION (7) --- Experimental Q-thruster > --- UTILITY (12) ----- (None) > --- WEAPON (4) ------- Superquantum Companion > --- INVENTORY (5) ---- Transdimensional Reconstructor Warp Cannon Mini Smartbomb Launcher Peak State ------------ > --- POWER ------------ Compact Particle Reactor Zero-point Reactor > --- PROPULSION ------- Q-thruster Improved Diametric Drive Cooled Q-thruster Cooled Q-thruster Cooled Q-thruster Experimental Q-thruster Experimental Q-thruster > --- UTILITY ---------- Experimental Power Amplifier Advanced Heat Sink Large Storage Unit Quantum Shading Machine Experimental Sensor Array Experimental Signal Interpreter Femtoactuators Advanced Transmission Jammer Improved Utility Shielding Experimental Hacking Suite Experimental Hacking Suite Deep Network Scanner > --- WEAPON ----------- Core Cannon Nanosword Superquantum Companion > --- INVENTORY -------- Zero-point Reactor Experimental Actuator Array Experimental Actuator Array Experimental Reaction Control System Centrium Medium Armor Plating Graphene Brace Dimensional Node Initializer Transdimensional Reconstructor Integrity Redistributor Warp Cannon Mini Smartbomb Launcher Sigix Terminator [Rating: 237] Favorites ----------- Power Light Fission Core Engine Subdweller Power Source Power Core Light Fission Core Reactor Compact Particle Reactor Propulsion Cooled Q-thruster Treads Advanced Treads Leg Carbon-fiber Leg Wheel Wheel Hover Unit Hover Unit Flight Unit Cooled Q-thruster Utility Advanced Hacking Suite Device Experimental Sensor Array Storage Large Storage Unit Processor Advanced Signal Interpreter Hackware Advanced Hacking Suite Protection Improved Utility Shielding Artifact Phase Armor Weapon Companion Sword Energy Gun Cooled Phase Gun Energy Cannon Beam Cannon Ballistic Gun Light Assault Rifle Ballistic Cannon Assault Cannon Launcher Rocket Launcher Special Weapon Multitool Slashing Weapon Companion Sword Piercing Weapon Plasma Lance Special Melee Weapon Advanced Datajack Build | -11 -10 -10 -10 -8 -6 -6 -6 -6 -5 -5 -5 -4 -4 -4 -4 -4 -4 -4 -3 -3 -3 -2 -2 -2 -1 -1 ------- Run | Yrd Mat Min Sub Scr Fac Low Low Dat Pro Fac DSF Fac Was Fac Ext Cet Arc Hub Res Arm Lab Res Qua Sec Acc Com Slots Evolved 18 | . . . . . 8 . . . . 2 . 2 . . . . . . 2 . . 2 . . 2 . Power 1 | . . . . . . . . . . 1 . . . . . . . . . . . . . . . . Propulsion 5 | . . . . . 3 . . . . 1 . . . . . . . . . . . . . . 1 . Utility 10 | . . . . . 5 . . . . . . 2 . . . . . . 2 . . . . . 1 . Weapon 2 | . . . . . . . . . . . . . . . . . . . . . . 2 . . . . Parts Attached 234 | 7 11 11 6 10 37 3 3 . . 1 4 29 . 11 4 9 1 1 30 10 5 11 9 3 7 11 Power 25 | 1 1 2 1 1 5 . . . . . . 3 . 1 2 1 . . 4 1 . 1 1 . . . Engine 10 | 1 1 1 1 1 3 . . . . . . 1 . 1 . . . . . . . . . . . . Core 7 | . . 1 . . 2 . . . . . . 2 . . 2 . . . . . . . . . . . Reactor 8 | . . . . . . . . . . . . . . . . 1 . . 4 1 . 1 1 . . . Propulsion 56 | 2 2 3 2 3 14 . 1 . . 1 2 4 . 3 . 1 . 1 6 2 . 1 2 1 2 3 Treads 5 | 1 1 1 . . 2 . . . . . . . . . . . . . . . . . . . . . Leg 10 | . . . . . 6 . . . . . . 1 . . . 1 . . 2 . . . . . . . Wheel 8 | 1 1 2 2 2 . . . . . . . . . . . . . . . . . . . . . . Hover 3 | . . . . . 2 . . . . 1 . . . . . . . . . . . . . . . . Flight 30 | . . . . 1 4 . 1 . . . 2 3 . 3 . . . 1 4 2 . 1 2 1 2 3 Utility 103 | 2 2 3 1 2 16 3 1 . . . 2 17 . 6 . 5 1 . 15 1 2 6 5 2 5 6 Device 48 | 1 . 3 . 2 9 1 . . . . 1 11 . 1 . 1 1 . 7 . 1 . 2 2 2 3 Storage 11 | 1 2 . 1 . 1 1 . . . . . 2 . . . 1 . . 2 . . . . . . . Processor 9 | . . . . . 3 . . . . . . 1 . 1 . . . . 1 1 . . . . 1 1 Hackware 20 | . . . . . 1 . . . . . . 3 . 4 . 1 . . 4 . 1 5 . . 1 . Protection 13 | . . . . . 2 1 1 . . . 1 . . . . 2 . . 1 . . 1 1 . 1 2 Artifact 2 | . . . . . . . . . . . . . . . . . . . . . . . 2 . . . Weapon 50 | 2 6 3 2 4 2 . 1 . . . . 5 . 1 2 2 . . 5 6 3 3 1 . . 2 Energy Gun 14 | 1 2 1 1 2 1 . 1 . . . . 1 . . . 1 . . 1 1 1 . . . . . Energy Cannon 8 | . 1 . . . . . . . . . . 1 . . . . . . 1 2 1 . 1 . . 1 Ballistic Gun 3 | 1 . 1 . . . . . . . . . . . . . 1 . . . . . . . . . . Ballistic Cannon 1 | . . . 1 . . . . . . . . . . . . . . . . . . . . . . . Launcher 8 | . 1 1 . . 1 . . . . . . . . . 1 . . . . 3 . . . . . 1 Special Weapon 4 | . . . . 1 . . . . . . . . . 1 1 . . . . . 1 . . . . . Impact Weapon . | . . . . . . . . . . . . . . . . . . . . . . . . . . . Slashing Weapon 7 | . 2 . . 1 . . . . . . . 1 . . . . . . . . . 3 . . . . Piercing Weapon 1 | . . . . . . . . . . . . . . . . . . . 1 . . . . . . . Special Melee Weapon 4 | . . . . . . . . . . . . 2 . . . . . . 2 . . . . . . . Unidentified Prototypes 61 | . . . . 2 3 1 . . . . . 13 . 1 . 5 . . 11 7 8 . 6 3 . 1 Parts Lost 51 | . 4 1 . . 7 . . . . . 1 1 . . 3 . . 1 1 . . 2 3 . . 27 Power 5 | . . . . . 1 . . . . . . . . . 1 . . . . . . . . . . 3 Propulsion 24 | . 2 . . . 5 . . . . . . 1 . . 1 . . 1 1 . . 1 3 . . 9 Utility 17 | . 1 . . . 1 . . . . . 1 . . . . . . . . . . 1 . . . 13 Weapon 5 | . 1 1 . . . . . . . . . . . . 1 . . . . . . . . . . 2 Highest Loss Streak 19 | . 2 1 . . 3 . . . . . 1 1 . . 1 . . 1 1 . . 1 2 . . 19 To Critical Strikes . | . . . . . . . . . . . . . . . . . . . . . . . . . . . Average Backups 11 | 4 10 15 20 7 11 8 9 9 9 9 8 13 13 12 12 12 13 12 13 14 11 14 14 13 13 10 Power . | . 1 3 3 . 1 1 1 1 1 1 . . . . . . . . . . . . . 1 1 . Propulsion 1 | 2 3 5 5 . 1 . . . . . . . 1 . . 1 1 . 1 . . . . . . . Utility 5 | . 1 2 4 2 4 4 4 5 5 5 4 8 9 9 9 10 9 8 7 8 5 7 8 5 5 2 Weapon 2 | 1 3 4 7 1 2 1 1 1 1 1 1 1 1 1 1 1 2 2 2 4 5 5 3 4 4 4 Tool/Special . | . . . . . . . . . . . . . . . . . . . . . . . . . . . Unused Backups 40 | . 2 2 9 3 6 1 1 . . . . 3 . . . . . . 1 3 2 1 3 1 . 2 Power 5 | . . 1 1 . 3 . . . . . . . . . . . . . . . . . . . . . Propulsion 9 | . 1 1 6 . . . 1 . . . . . . . . . . . . . . . . . . . Utility 17 | . . . . 3 1 1 . . . . . 3 . . . . . . 1 2 2 . 3 1 . . Weapon 5 | . 1 . 2 . 1 . . . . . . . . . . . . . . 1 . . . . . . Tool/Special 4 | . . . . . 1 . . . . . . . . . . . . . . . . 1 . . . 2 Average Slot Usage (%) 85 | . 98 85 100 75 70 88 92 93 93 86 85 89 94 93 91 88 94 93 95 99 94 91 96 94 98 77 Engine 5 | . 14 10 1 13 3 . . . . . . . . 2 2 . . . . . . . . . . . Core 3 | . . 3 12 . 2 6 6 6 6 5 5 9 10 7 7 6 5 5 1 . . . . . . . Reactor 1 | . . . . . . . . . . . . . . . . 3 5 5 7 9 9 8 7 7 8 6 Treads 6 | . 14 14 14 13 3 . . . . . . . . . . . . . . . . . . . . . Wheel 6 | . 13 14 14 14 2 . . . . . . . . . . . . . . . . . . . . . Flight 13 | . . . . . 4 33 32 33 33 29 30 24 26 26 25 26 26 26 26 28 28 26 23 21 27 19 Device 13 | . 12 . 14 13 19 7 12 13 13 11 6 15 15 10 10 10 10 14 18 19 21 18 16 18 23 23 Storage 8 | . 14 14 14 12 6 9 13 13 13 11 11 5 5 5 5 5 5 5 4 4 4 4 4 4 4 3 Processor 3 | . . . . . 3 13 13 13 13 11 11 10 10 10 10 5 5 5 4 4 4 4 4 4 4 1 Hackware 8 | . . . . . . 6 6 6 6 5 5 13 15 20 21 21 26 21 21 22 19 17 17 15 12 5 Ballistic Gun 1 | . 9 13 12 . . . . . . . . . . . . . . . . . . . . . . . Special Weapon 1 | . . . . 2 . . . . . . . . . 2 . 2 5 4 1 3 1 3 . . . . Slashing Weapon 5 | . 8 . . 4 6 6 6 6 6 5 5 5 5 5 5 5 5 5 4 4 4 7 17 17 15 12 Peak Build Rating 237 | 9 10 20 37 40 71 72 75 69 69 74 74 122 120 137 137 137 137 137 168 178 176 202 218 206 237 232 Average Rating 81 | 7 9 9 22 28 52 69 68 69 69 73 70 103 120 123 130 130 136 133 151 168 164 178 194 193 226 189 On Entrance 104 | . 9 7 19 37 39 71 70 69 69 69 74 72 120 120 137 121 137 137 119 159 171 176 201 194 206 230 Naked Turns . | . . . . . . . . . . . . . . . . . . . . . . . . . . . Heaviest Build 100 | 12 90 57 96 100 97 39 27 27 27 27 39 55 46 47 48 60 54 55 62 59 58 61 60 59 64 77 Greatest Support 77 | 10 10 10 20 22 76 30 42 29 41 29 33 63 51 61 61 60 60 60 64 74 62 74 66 63 69 77 Greatest Overweight (x) 17 | 1 8 5 9 9 8 1 . . . . 1 1 . . 1 . 17 . 1 . . . 1 1 . 1 Average Overweight (x) 1 | . 3 4 5 5 1 . . . . . . . . . . . 8 . . . . . . . . . Largest Inventory Capacity 25 | 8 25 20 25 25 25 10 10 10 10 10 10 15 15 15 15 15 15 15 15 15 15 15 15 15 15 15 Average Capacity 18 | 7 17 20 24 23 19 10 10 10 10 10 10 14 15 15 15 15 15 15 15 15 15 15 15 15 15 14 Most Carried 25 | 6 15 20 25 25 25 10 10 10 10 10 10 15 15 15 15 15 15 15 15 15 15 15 15 15 15 15 Average Carried 16 | 4 10 15 23 20 17 9 10 10 10 10 9 14 15 14 14 14 14 14 14 14 11 14 14 14 14 12 Final Capacity 25 | 8 20 20 25 25 10 10 10 10 10 10 10 15 15 15 15 15 15 15 15 15 15 15 15 15 15 5 Final Carried 25 | 6 13 20 25 25 10 10 10 10 10 10 10 15 15 15 15 15 15 15 15 15 15 14 15 15 15 3 Class Distribution -------------------- 46% | Mutant 16% | Wizard-Scout 8% | Wizard-Mutant 5% | Wizard-Sprinter 3% | Scavenger-Mutant 3% | Trapper-Scout 3% | Hacker-Scout Dominant Class ---------------- Mutant | -10/Materials Mutant | -10/Mines Mutant | -10/Subcaves Mutant | -8/Scraptown Scavenger-Mutant | -6/Factory Trapper-Scout | -6/Lower Caves Trapper-Scout | -6/Lower Caves Trapper-Scout | -6/Data Miner Trapper-Scout | -5/Proximity Caves Trapper-Scout | -5/Factory Trapper-Scout | -5/DSF Hacker-Ninja | -4/Factory Hacker-Scout | -4/Waste Wizard-Scout | -4/Factory Wizard-Scout | -4/Extension Wizard-Sprinter | -4/Cetus Wizard-Mutant | -4/Archives Wizard-Scout | -4/Hub_04(d) Wizard-Scout | -3/Research Wizard-Scout | -3/Armory Wizard-Scout | -3/Lab Wizard-Scout | -2/Research Wizard-Sprinter | -2/Quarantine Wizard-Mutant | -2/Section 7 Hacker-Sprinter | -1/Access Machinist-Sprinter | -1/Command Resources | -11 -10 -10 -10 -8 -6 -6 -6 -6 -5 -5 -5 -4 -4 -4 -4 -4 -4 -4 -3 -3 -3 -2 -2 -2 -1 -1 ----------- Run | Yrd Mat Min Sub Scr Fac Low Low Dat Pro Fac DSF Fac Was Fac Ext Cet Arc Hub Res Arm Lab Res Qua Sec Acc Com Matter Collected 6896 | 296 216 291 138 165 482 296 55 . . . 91 1174 137 614 293 172 47 10 1265 345 . 290 165 159 115 80 Remotely 90 | . . . . . 70 . . . . . . 20 . . . . . . . . . . . . . . Salvage Created 8230 | 158 504 33 64 . 1121 144 14 . . . 86 1106 . 637 400 43 140 . 572 194 . 410 116 416 364 1708 Parts 405 | 10 27 9 6 . 49 8 1 . . . 6 36 . 44 15 3 13 . 35 27 . 32 2 19 25 38 Haulers Intercepted 10 | . 2 . . . 2 . . . . . . 4 . . . . . . 2 . . . . . . . Recyclers Shooed 3 | . 1 . . . 1 . . . . . . . . 1 . . . . . . . . . . . . Parts Field Recycled . | . . . . . . . . . . . . . . . . . . . . . . . . . . . Retrieved Matter . | . . . . . . . . . . . . . . . . . . . . . . . . . . . Parts Self-Destructed 21 | . . . 2 . . 19 . . . . . . . . . . . . . . . . . . . . Prevented 8 | . . . . . . 5 3 . . . . . . . . . . . . . . . . . . . Kills | -11 -10 -10 -10 -8 -6 -6 -6 -6 -5 -5 -5 -4 -4 -4 -4 -4 -4 -4 -3 -3 -3 -2 -2 -2 -1 -1 ------- Run | Yrd Mat Min Sub Scr Fac Low Low Dat Pro Fac DSF Fac Was Fac Ext Cet Arc Hub Res Arm Lab Res Qua Sec Acc Com Combat Hostiles Destroyed 248 | . 11 8 2 . 13 1 1 . . . 2 1 . 1 6 . . . 7 9 . 1 . . 7 178 Melee 36 | . 3 . . . 13 1 1 . . . 2 1 . 1 2 . . . 3 1 . . . . 1 7 Guns 4 | . 2 1 1 . . . . . . . . . . . . . . . . . . . . . . . Cannons 2 | . . . . . . . . . . . . . . . . . . . . . . 1 . . . 1 AOE 205 | . 6 7 1 . . . . . . . . . . . 4 . . . 4 8 . . . . 6 169 Classes Destroyed 28 | 3 4 1 1 . 3 2 1 . . . 2 . . 2 . . . . 1 1 . . . 1 . 6 Worker 15 | 1 . . . . 1 . . . . . . 1 . 8 . . . . 1 . . 1 . . 1 1 Builder 5 | . . . . . . . . . . . . . . 1 1 . . . . . . 2 . 1 . . Tunneler 7 | 4 . . . . 1 . . . . . . . . 1 . . . . . . . . . . 1 . Hauler 10 | . 2 . . . 2 . . . . . . 4 . . . . . . 2 . . . . . . . Recycler 12 | 1 2 . . . 1 . . . . . . 4 . 1 1 . . . . . . 1 1 . . . Carrier 16 | . . . . . . . . . . . . . . . . . . . . . . . . . . 16 Minesweeper 2 | . . . . . . 2 . . . . . . . . . . . . . . . . . . . . Mechanic 1 | . . . . . . . . . . . . . . . . . . . . . . . . . . 1 Operator 10 | . . . . . 1 . . . . . . . . . . . 4 . 1 1 . 1 . 1 1 . Drone 1 | . . . . . . . . . . . . . . 1 . . . . . . . . . . . . Watcher 25 | . 1 . . . 1 . . . . . . 1 . 9 1 1 . . 2 1 . 3 . 2 2 1 Swarmer 52 | . 6 6 . . 2 1 . . . . . . . . 4 . . . 4 5 . . . . 6 18 Cutter 9 | . . . . . . . . . . . 1 . . . . . . . . 2 . . . . . 6 Saboteur 8 | . . . . . . . . . . . . . . . . . . . . 2 . . . . . 6 Grunt 62 | . 5 . . . 8 . . . . . . 1 . . . . . . . . . . . . . 48 Brawler 12 | . . . . . . . . . . . . . . . . . . . . . . . . . . 12 Duelist 12 | . . . . . . . . . . . . . . . . . . . . . . . . . . 12 Protector 6 | . . . . . . . . . . . . . . . . . . . . . . . . . . 6 Researcher 4 | . . . . . . . . . . . . . . . . . . . . . . . . 4 . . Sentry 7 | . . . . . 2 . . . . . . . . . 2 . . . 1 . . . . . 1 1 Demolisher 5 | . . . . . . . . . . . . . . . . . . . . . . . . . . 5 Specialist 13 | . . . . . . . . . . . 1 . . . . . . . . . . . . . . 12 Hunter 25 | . . . . . . . . . . . . . . . . . . . 2 . . . . . . 23 Programmer 26 | . . . . . 1 . . . . . . . . . . . . . . . . 1 . . . 24 M Guard 2 | . . . . . . . . . . . . . . . . . . . . . . . . . . 2 Combat Programmer 2 | . . . . . . . . . . . . . . . . . . . . . . . . . . 2 Subdweller 2 | . . . 2 . . . . . . . . . . . . . . . . . . . . . . . Samaritan 1 | . . . . . . 1 . . . . . . . . . . . . . . . . . . . . Thief 1 | . . . . . . . 1 . . . . . . . . . . . . . . . . . . . Assembled 2 | . . 2 . . . . . . . . . . . . . . . . . . . . . . . . Best Kill Streak 189 | 6 3 3 1 . 3 1 1 . . . 1 2 . 5 4 1 2 . 5 5 . 3 1 1 8 189 Combat Bots Only 172 | . 3 3 1 . 3 1 1 . . . 1 1 . 1 4 . . . 4 5 . 1 . . 6 172 Max Kills in Single Turn 186 | 1 2 3 1 . 1 1 1 . . . 1 1 . 1 4 1 1 . 3 4 . 1 1 1 5 186 Gunslinging . | . . . . . . . . . . . . . . . . . . . . . . . . . . . Exploded 169 | . 2 3 1 . . . . . . . . . . . 4 . . . 2 4 . . . . 5 169 Melee 1 | . 1 . . . 1 1 1 . . . 1 1 . 1 1 . . . 1 1 . . . . 1 1 Uniques/NPCs Destroyed 1 | . . . . . . . . . . . . . . . . . . . . . . . . . . 1 MAIN.C Shell (-1/Command) Combat | -11 -10 -10 -10 -8 -6 -6 -6 -6 -5 -5 -5 -4 -4 -4 -4 -4 -4 -4 -3 -3 -3 -2 -2 -2 -1 -1 -------- Run | Yrd Mat Min Sub Scr Fac Low Low Dat Pro Fac DSF Fac Was Fac Ext Cet Arc Hub Res Arm Lab Res Qua Sec Acc Com Hostile Shots Fired 656 | . 53 19 4 . 178 7 5 . 4 . 6 39 . 5 40 1 1 23 13 9 . 25 12 10 2 200 Missed 209 | . 13 4 1 . 42 1 3 . 2 . 4 19 . 1 16 1 1 14 5 2 . 12 5 7 . 56 Intercepted 7 | . . . . . . . . . . . . . . . . . . . . . . . . . . 7 Deflected 5 | . . . . . . . . . . . . . . . . . . . . . . 1 . . . 4 Damage Taken 10920 | . 532 179 56 142 1829 82 19 . 38 . 45 440 13 109 705 86 . 166 193 182 . 301 466 226 53 5058 Core 2543 | . 80 37 20 71 294 26 19 . . . 5 92 . 44 200 . . 9 7 . . 8 54 54 25 1498 Absorbed by Shields 53 | . . . . . . . . . . . . . . . 39 14 . . . . . . . . . . Redirected to Shielding 323 | . . . . . 26 . . . . . . . . . . . . . . . . 30 65 13 . 189 Ignored by Resistances 24 | . . . . . 24 . . . . . . . . . . . . . . . . . . . . . Regen/Repaired (Parts) 651 | . . . . 79 . . . . . . . 13 43 . . . . . 154 . . . 85 277 . . Core Remaining (%) 67 | 100 . . . 16 . . . . 60 . 99 . . . . . . 70 . . 94 . . 88 . 9 Volleys Fired 96 | 26 26 9 5 . . . . . . . . . . . 3 2 . . 2 9 . 6 . . 3 5 Largest 2 | 2 2 2 2 . . . . . . . . . . . 1 1 . . 1 1 . 1 . . 1 1 Hottest 300 | 70 80 65 62 . . . . . . . . . . . 45 80 . . 45 80 . 40 . . 300 300 Shots Fired 145 | 52 45 10 8 . . . . . . . . . . . 3 2 . . 2 9 . 6 . . 3 5 Gun 96 | 52 36 3 3 . . . . . . . . . . . . 2 . . . . . . . . . . Cannon 23 | . 4 . 4 . . . . . . . . . . . . . . . . 4 . 6 . . 1 4 Launcher 24 | . 5 7 1 . . . . . . . . . . . 1 . . . 2 5 . . . . 2 1 Special 2 | . . . . . . . . . . . . . . . 2 . . . . . . . . . . . Kinetic 56 | 26 21 2 7 . . . . . . . . . . . . . . . . . . . . . . . Thermal 58 | 26 13 1 . . . . . . . . . . . . . 2 . . . 4 . 6 . . 1 5 Explosive 23 | . 5 7 1 . . . . . . . . . . . 1 . . . 2 5 . . . . 2 . Electromagnetic 6 | . 6 . . . . . . . . . . . . . . . . . . . . . . . . . Robot Hit Streak 6 | 5 6 2 4 . . . . . . . . . . . 1 2 . . 1 . . . . . . . Robot Miss Streak 4 | 2 2 4 1 . . . . . . . . . . . 4 . . . 3 . . . . . . . Penetration Max . | . . . . . . . . . . . . . . . . . . . . . . . . . . . Secondary Targets . | . . . . . . . . . . . . . . . . . . . . . . . . . . . Autonomous 7 | . . . . . . . . . . . . . . . . . . . . . . 1 . . . 6 Shots Hit Robots 454 | 29 39 3 4 . 65 11 2 . . . 2 32 . 42 32 2 4 . 16 8 . 9 1 13 13 127 Core Hits 359 | 9 22 8 4 . 26 4 1 . . . 2 10 . 17 18 2 3 . 25 15 . 5 . 5 13 170 Critical Kills . | . . . . . . . . . . . . . . . . . . . . . . . . . . . Critical Parts Destroyed . | . . . . . . . . . . . . . . . . . . . . . . . . . . . Critical Strikes 10 | . . . . . 4 . . . . . . 2 . . 2 . . . . . . . . . . 2 Melee Attacks 706 | . 27 1 . . 102 17 9 . 1 3 6 67 . 91 40 . 4 3 32 25 7 27 17 39 30 158 Impact . | . . . . . . . . . . . . . . . . . . . . . . . . . . . Slashing 703 | . 27 1 . . 102 17 9 . 1 3 6 65 . 91 40 . 4 3 31 25 7 27 17 39 30 158 Piercing . | . . . . . . . . . . . . . . . . . . . . . . . . . . . Sneak Attacks 82 | . 4 . . . 10 4 . . . . 1 13 . 14 7 . 4 . 7 . . 5 1 5 2 5 Combat Hostiles 9 | . . . . . . . . . . . 1 . . . 4 . . . 2 . . . . . . 2 Follow-up Attacks 4 | . 1 . . . . . . . . . . . . . 1 . . . . . . . . . . 2 Damage Inflicted 179470 | 320 1076 414 149 . 3072 653 91 . . . 119 1730 . 2581 1887 67 412 . 1310 1288 . 914 154 1727 1861 159645 Guns 660 | 320 216 18 39 . . . . . . . . . . . . 67 . . . . . . . . . . Cannons 647 | . 18 . 26 . . . . . . . . . . . . . . . . . . 90 . . . 513 Explosions 149227 | . 413 396 84 . . . . . . . . . . . 193 . . . 409 769 . . . . 491 146472 Melee 28936 | . 429 . . . 3072 653 91 . . . 119 1730 . 2581 1694 . 412 . 901 519 . 824 154 1727 1370 12660 Ramming . | . . . . . . . . . . . . . . . . . . . . . . . . . . . Kinetic 296 | 82 131 18 65 . . . . . . . . . . . . . . . . . . . . . . . Thermal 146849 | 238 72 . . . . . . . . . . . . . . 67 . . . . . . . . . 146472 Explosive 2755 | . 413 396 84 . . . . . . . . . . . 193 . . . 409 769 . . . . 491 . Electromagnetic 31 | . 31 . . . . . . . . . . . . . . . . . . . . . . . . . Impact . | . . . . . . . . . . . . . . . . . . . . . . . . . . . Slashing 28936 | . 429 . . . 3072 653 91 . . . 119 1730 . 2581 1694 . 412 . 901 519 . 824 154 1727 1370 12660 Piercing . | . . . . . . . . . . . . . . . . . . . . . . . . . . . Phasic 603 | . . . . . . . . . . . . . . . . . . . . . . 90 . . . 513 Highest Corruption 13 | . 1 1 1 1 2 2 2 2 2 . . . . . 4 4 4 1 . . . 2 2 4 . 13 Average Corruption 1 | . 1 1 1 1 1 2 2 2 2 . . . . . 4 4 2 1 . . . 1 2 2 . 2 Corruption Purged 4 | . . . . . . . . . . . . . . . . . 4 . . . . . . . . . Corruption Blocked . | . . . . . . . . . . . . . . . . . . . . . . . . . . . Effects 106 | . 4 12 11 21 9 7 7 1 1 . . . . . 10 4 1 1 . . . 1 2 9 . 5 Message Errors 30 | . 1 3 3 6 3 2 2 . . . . . . . 2 2 1 . . . . . . 2 . 3 Matter Fused 29 | . . 5 1 7 1 2 2 . 1 . . . . . 3 2 . . . . . . . 4 . 1 Heat Flow Errors 13 | . 1 2 . 3 2 . 3 . . . . . . . 1 . . . . . . . 1 . . . Energy Discharges 11 | . . . 2 1 1 2 . 1 . . . . . . 1 . . . . . . . 1 2 . . Parts Fused 2 | . . . 1 . . . . . . . . . . . 1 . . . . . . . . . . . Data Loss (minor) 13 | . . 2 2 3 1 1 . . . . . . . . 1 . . 1 . . . 1 . 1 . . Data Loss (major) 3 | . . . 1 1 1 . . . . . . . . . . . . . . . . . . . . . Misfires 2 | . 1 . 1 . . . . . . . . . . . . . . . . . . . . . . . Alerts 2 | . . . . . . . . . . . . . . . 1 . . . . . . . . . . 1 Weapon Failures 1 | . 1 . . . . . . . . . . . . . . . . . . . . . . . . . Overload Shots . | . . . . . . . . . . . . . . . . . . . . . . . . . . . Overflow Damage 18859 | . 54 50 . . 257 165 6 . . . . 237 . 671 178 . 57 . 88 117 . 233 124 705 427 15490 Projectiles 6 | . . . . . . . . . . . . . . . . . . . . . . . . . . 6 Explosions 14525 | . 44 50 . . . . . . . . . . . . 5 . . . 5 21 . . . . . 14400 Melee 4328 | . 10 . . . 257 165 6 . . . . 237 . 671 173 . 57 . 83 96 . 233 124 705 427 1084 Knockbacks 1 | . . . 1 . . . . . . . . . . . . . . . . . . . . . . . Impact . | . . . . . . . . . . . . . . . . . . . . . . . . . . . Kinetic 1 | . . . 1 . . . . . . . . . . . . . . . . . . . . . . . Secondary . | . . . . . . . . . . . . . . . . . . . . . . . . . . . Self-Inflicted Damage 155 | . 93 48 . . . . . . . . . . . . . . . . . 14 . . . . . . Shots 5 | . 3 1 . . . . . . . . . . . . . . . . . 1 . . . . . . Rammed . | . . . . . . . . . . . . . . . . . . . . . . . . . . . Targets Rammed . | . . . . . . . . . . . . . . . . . . . . . . . . . . . Kicked . | . . . . . . . . . . . . . . . . . . . . . . . . . . . Crushed . | . . . . . . . . . . . . . . . . . . . . . . . . . . . Highest Temperature 281 | 180 238 270 . 140 202 . 223 . 54 . . 62 . 4 174 73 4 24 2 68 2 205 281 . 170 166 Average Temperature 46 | 81 46 114 . 71 106 . 111 . 31 . . 11 . 4 105 13 2 6 1 9 1 63 90 . 26 50 Received Heat Transfer 1412 | . 207 . . . 528 . . . . . . 75 . 9 125 . . 18 . 9 . 18 9 . 9 405 Effects 2 | . . 1 . . . . . . . . . . . . . . . . . . . 1 . . . . Interference 2 | . . 1 . . . . . . . . . . . . . . . . . . . 1 . . . . Siege Activations . | . . . . . . . . . . . . . . . . . . . . . . . . . . . Martial Activations . | . . . . . . . . . . . . . . . . . . . . . . . . . . . Shielding Activations . | . . . . . . . . . . . . . . . . . . . . . . . . . . . Robots Disrupted 6 | . . . . . . . . . . . . 1 . 2 2 . . . . . . . . . . 1 Combat Hostiles 4 | . . . . . . . . . . . . 1 . 1 2 . . . . . . . . . . . Robots Corrupted . | . . . . . . . . . . . . . . . . . . . . . . . . . . . Combat Hostiles . | . . . . . . . . . . . . . . . . . . . . . . . . . . . Parts Fried 1 | . . . . . . . . . . . . . . . 1 . . . . . . . . . . . Impact Corruptions . | . . . . . . . . . . . . . . . . . . . . . . . . . . . Robots Melted . | . . . . . . . . . . . . . . . . . . . . . . . . . . . Combat Hostiles . | . . . . . . . . . . . . . . . . . . . . . . . . . . . Parts Melted 3 | 2 . . . . . . . . . . . . . . . . . . 1 . . . . . . . Heat Transferred 3159 | 703 162 . . . . . . . . . . . . . . 74 . . . . . . . . . 2220 Parts Sabotaged . | . . . . . . . . . . . . . . . . . . . . . . . . . . . Parts Stolen 1 | . . . . . . . 1 . . . . . . . . . . . . . . . . . . . Parts Stripped 22 | . . . . . . . . . . . . . . . . . . . . . . 8 . . . 14 Power Chain Reactions . | . . . . . . . . . . . . . . . . . . . . . . . . . . . Alert | -11 -10 -10 -10 -8 -6 -6 -6 -6 -5 -5 -5 -4 -4 -4 -4 -4 -4 -4 -3 -3 -3 -2 -2 -2 -1 -1 ------- Run | Yrd Mat Min Sub Scr Fac Low Low Dat Pro Fac DSF Fac Was Fac Ext Cet Arc Hub Res Arm Lab Res Qua Sec Acc Com Maximum Alert Level 5 | . . . . . . . . . . . . . . . 1 1 1 1 1 1 . 1 . . . 5 Low Security (%) 92 | 100 100 100 . . 100 . . . . 100 100 100 100 100 38 12 84 78 98 99 . 92 100 100 100 73 Level 1 6 | . . . . . . . . . . . . . . . 61 87 15 21 1 . . 7 . . . . Level 2 . | . . . . . . . . . . . . . . . . . . . . . . . . . . . Level 3 . | . . . . . . . . . . . . . . . . . . . . . . . . . . . Level 4 . | . . . . . . . . . . . . . . . . . . . . . . . . . . . Level 5 . | . . . . . . . . . . . . . . . . . . . . . . . . . . 26 High Security . | . . . . . . . . . . . . . . . . . . . . . . . . . . . Max Security . | . . . . . . . . . . . . . . . . . . . . . . . . . . . Sterilizations 1 | . . . . . 1 . . . . . . . . . . . . . . . . . . . . . Peak Influence 351 | 10 158 106 . . 146 . . . . . 64 57 53 67 328 338 319 242 311 221 . 351 131 154 195 142 Initial 169 | . . 45 . . . . . . . . . 33 17 30 . 169 123 . 121 27 . . 112 . 4 89 Average 54 | 2 71 19 . . 44 . . . . . 28 17 27 12 193 272 74 77 76 63 . 40 73 23 82 90 Influence Increases 14459 | 30 403 190 . . 531 60 75 . . . 74 548 76 381 1063 339 276 317 1221 593 . 551 185 386 457 6703 Destroy 0b10 Robot/C 6200 | . 220 120 . . 260 20 . . . . 40 20 . . 480 160 80 20 560 180 . 60 . 80 140 3760 Destroy 0b10 Robot/NC 495 | 30 25 . . . 35 10 . . . . . 50 . 105 20 10 20 . 35 10 . 40 5 20 25 55 Destroy Leader 480 | . 46 20 . . 66 . . . . . . 10 . 18 44 . . 10 140 22 . 26 . 4 24 50 Allied During Kill 711 | . . . . . . . . . . . . . . . 320 155 100 10 126 . . . . . . . Trap Triggered on 0b10 130 | . . . . . . . . . . . . 40 . 40 . . . . . . . 50 . . . . Successful Hack 688 | . 12 . . . . . . . . . . 177 . 33 41 . . 37 116 33 . 87 33 90 28 1 Select Force Hacks 290 | . . . . . 60 . . . . . . . . . . . . 200 30 . . . . . . . Disable Machine 375 | . 15 15 . . . . . . . . . . . . 45 . 15 . . 105 . . 105 60 15 . Destroy Structure 2720 | . 40 35 . . 5 . . . . . 4 56 76 50 38 14 16 10 154 78 . 108 27 42 135 1832 Partial Spotted 750 | . . . . . . . . . . . 15 75 . 105 45 . 45 30 60 135 . 120 15 . 30 75 Lose Combat Pursuer 1620 | . 45 . . . 105 30 75 . . . 15 120 . 30 30 . . . . 30 . 60 . 90 60 930 Influence Decreases 7144 | 30 287 168 32 . 439 91 95 . . . 10 531 50 411 759 200 399 85 1290 511 . 350 297 379 320 410 Time Decay 4252 | 30 247 168 32 . 379 91 95 . . . . 474 30 399 290 120 399 40 417 229 . 140 140 222 170 140 Lost Part 480 | . 40 . . . 50 . . . . . 10 10 . . 30 . . 10 10 . . 20 30 . . 270 Lost Ally 845 | . . . . . 10 . . . . . . 32 20 12 289 80 . 35 327 . . 40 . . . . Purge Threat 1567 | . . . . . . . . . . . . 15 . . 150 . . . 536 282 . 150 127 157 150 . Squads Dispatched 69 | . 1 . . . 6 . . . . 1 1 10 . 10 1 . . 9 15 2 . 8 . 1 1 3 Investigation 44 | . 1 . . . 2 . . . . 1 . 6 . 6 1 . . 8 13 1 . 4 . . 1 . Extermination 8 | . . . . . 1 . . . . . . 2 . 1 . . . . . . . 2 . 1 . 1 Reinforcement 14 | . . . . . 2 . . . . . 1 2 . 2 . . . 1 2 1 . 2 . . . 1 Assault 3 | . . . . . 1 . . . . . . . . 1 . . . . . . . . . . . 1 Garrison . | . . . . . . . . . . . . . . . . . . . . . . . . . . . Intercept . | . . . . . . . . . . . . . . . . . . . . . . . . . . . Searches Triggered . | . . . . . . . . . . . . . . . . . . . . . . . . . . . Data Miner Redirects 7 | . . . . . . . . . . . . 2 . . . . . 5 . . . . . . . . Construction Impeded 1 | . . . . . . . . . . . . . . . . . . . . . . 1 . . . . Haulers Reinforced 3 | . . . . . 1 . . . . . . . . 1 . . . . 1 . . . . . . . Active Scanning Responses . | . . . . . . . . . . . . . . . . . . . . . . . . . . . Cargo Convoy Interrupts 1 | . . . . . . . . . . . . 1 . . . . . . . . . . . . . . Stealth | -11 -10 -10 -10 -8 -6 -6 -6 -6 -5 -5 -5 -4 -4 -4 -4 -4 -4 -4 -3 -3 -3 -2 -2 -2 -1 -1 --------- Run | Yrd Mat Min Sub Scr Fac Low Low Dat Pro Fac DSF Fac Was Fac Ext Cet Arc Hub Res Arm Lab Res Qua Sec Acc Com Distress Signals 18 | . 2 . . . . . . . . . . 4 . . 2 2 1 . 5 1 . . . . 1 . Communications Jammed 46 | . . . . . . . . . . . . 1 . 7 . . . . . 18 . . . 15 5 . Distress Signals 35 | . . . . . . . . . . . . . . 3 . . . . . 18 . . . 10 4 . Times Spotted 318 | . 18 8 7 . 25 5 4 . 2 . 4 17 6 24 25 10 1 9 24 17 . 14 7 15 10 66 Peak Tracking Total 64 | . 4 3 2 . 4 3 6 . 2 . 2 4 5 5 5 5 1 9 7 6 . 13 10 5 4 64 Tactical Retreats 42 | . 2 . . . 6 1 2 . . . 1 8 1 3 2 . . . . 2 . 1 . 4 3 6 Traps | -11 -10 -10 -10 -8 -6 -6 -6 -6 -5 -5 -5 -4 -4 -4 -4 -4 -4 -4 -3 -3 -3 -2 -2 -2 -1 -1 ------- Run | Yrd Mat Min Sub Scr Fac Low Low Dat Pro Fac DSF Fac Was Fac Ext Cet Arc Hub Res Arm Lab Res Qua Sec Acc Com Traps Triggered 15 | . 1 . . 1 3 . . . . . . 4 . . 1 . . . 1 . . . 1 3 . . Indirectly . | . . . . . . . . . . . . . . . . . . . . . . . . . . . Trap Hack Attempts 33 | . . . . . . . . . . . . 23 . . . . . . 10 . . . . . . . Triggered . | . . . . . . . . . . . . . . . . . . . . . . . . . . . Disarmed 10 | . . . . . . . . . . . . . . . 10 . . . . . . . . . . . Reprogrammed 15 | . . . . . . . . . . . . 6 . . . . . . 3 . . 6 . . . . Reused 13 | . . . . . . . . . . . . 4 . 4 . . . . . . . 5 . . . . Traps Extracted 11 | . . 4 . . . . . . . . . 7 . . . . . . . . . . . . . . Installed 12 | . . . . 1 . . 1 . . . . 5 . 5 . . . . . . . . . . . . Triggered 13 | . . . . . . . . . . . . 4 . 4 . . . . . . . 5 . . . . Most Traps Carried 13 | . . 4 4 7 5 13 12 12 12 12 12 12 8 8 3 3 3 3 3 . . . . . . . Machines | -11 -10 -10 -10 -8 -6 -6 -6 -6 -5 -5 -5 -4 -4 -4 -4 -4 -4 -4 -3 -3 -3 -2 -2 -2 -1 -1 ---------- Run | Yrd Mat Min Sub Scr Fac Low Low Dat Pro Fac DSF Fac Was Fac Ext Cet Arc Hub Res Arm Lab Res Qua Sec Acc Com Machines Disabled 28 | . 1 1 . . 1 . . . . . . . . . 4 . 1 . . 7 1 . 7 4 1 . Max in Single Turn 1 | . 1 1 . . 1 . . . . . . . . . . . . . . 1 1 . 1 1 1 . Garrison Access 12 | . . . . . 2 . . . . . . 1 . 2 . . . . 4 . . . . 1 2 . Network Hub 4 | . . . . . . . . . . . . . . . . . . 4 . . . . . . . . Machines Repaired 2 | . . . . . . . . . . . . . . . . . . 2 . . . . . . . . Machines Dismantled . | . . . . . . . . . . . . . . . . . . . . . . . . . . . Machines Sabotaged 4 | . . . . . . . . . . . . . . . . . . 4 . . . . . . . . Overloaded Fab Kills . | . . . . . . . . . . . . . . . . . . . . . . . . . . . Hacking | -11 -10 -10 -10 -8 -6 -6 -6 -6 -5 -5 -5 -4 -4 -4 -4 -4 -4 -4 -3 -3 -3 -2 -2 -2 -1 -1 --------- Run | Yrd Mat Min Sub Scr Fac Low Low Dat Pro Fac DSF Fac Was Fac Ext Cet Arc Hub Res Arm Lab Res Qua Sec Acc Com Machines Accessed 167 | . 6 1 2 9 9 . . 4 . 2 . 22 . 26 9 1 . 7 24 7 1 12 8 8 6 3 Terminals 88 | . 4 . . . 4 . . . . 2 . 10 . 15 8 1 . 6 8 5 . 7 7 6 3 2 Fabricators 18 | . . . . . 1 . . . . . . 3 . 5 . . . . 4 2 . 2 . . 1 . Repair Stations 10 | . . . . . 2 . . . . . . 3 . . . . . . 3 . . . 1 . . 1 Recycling Units 13 | . 2 . . . . . . . . . . 2 . 2 1 . . . 4 . . 2 . . . . Scanalyzers 10 | . . . . . 2 . . . . . . 2 . 3 . . . . 1 . . 1 . 1 . . Garrison Access 11 | . . . . . . . . . . . . 2 . 1 . . . 1 4 . . . . 1 2 . Total Hacks 780 | . 19 1 3 55 17 . . 31 . 5 . 99 . 106 43 1 . 25 119 38 18 82 36 48 30 4 Successful 570 | . 5 1 3 55 4 . . 31 . 1 . 62 . 89 28 1 . 22 82 23 18 67 26 34 17 1 Failed 205 | . 13 . . . 13 . . . . 4 . 37 . 17 14 . . 3 36 14 . 14 10 14 13 3 Catastrophic 29 | . 3 . . . 3 . . . . . . 6 . 3 1 . . 1 3 1 . 4 1 1 . 2 Database Lockouts 5 | . 1 . . . . . . . . . . . . . 1 . . . 1 1 . 1 . . . . Manual 304 | . 10 . . . 3 . . . . . . 40 . 44 30 1 . 13 47 25 . 43 19 17 11 1 Terminals 444 | . 13 . . . 7 . . . . 5 . 45 . 56 41 1 . 23 61 31 . 56 34 46 23 2 Fabricators 98 | . . . . . 4 . . . . . . 16 . 22 . . . . 23 7 . 22 . . 4 . Repair Stations 30 | . . . . . 2 . . . . . . 16 . . . . . . 8 . . . 2 . . 2 Recycling Units 41 | . 6 . . . . . . . . . . 7 . 8 2 . . . 15 . . 3 . . . . Scanalyzers 41 | . . . . . 4 . . . . . . 10 . 19 . . . . 6 . . 1 . 1 . . Garrison Access 18 | . . . . . . . . . . . . 5 . 1 . . . 2 6 . . . . 1 3 . Terminal Hacks 298 | . 2 1 3 55 1 . . 31 . 1 . 18 . 25 17 1 . 11 26 13 18 30 14 23 7 1 Record 86 | . . . 1 53 . . . 11 . . . . . . . . . . . . 18 2 1 . . . Part Schematic 38 | . . . . . . . . 11 . . . 5 . 6 1 . . 2 5 3 . 5 . . . . Robot Schematic 7 | . . . . . . . . 6 . . . . . . . . . 1 . . . . . . . . Robot Analysis 21 | . 2 . . . . . . . . . . 1 . . 6 . . 1 1 1 . 5 1 2 1 . Prototype ID Bank 15 | . . . . . 1 . . 3 . . . 2 . 2 1 . . . 2 . . 2 . 2 . . Open Door 8 | . . 1 1 1 . . . . . . . . . 1 . 1 . . . . . . 1 1 . 1 Open DSF 2 | . . . . . . . . . . 1 . . . 1 . . . . . . . . . . . . Level Access Points 6 | . . . . . . . . . . . . . . 1 . . . 1 1 1 . . 1 1 . . Branch Access Points 5 | . . . . . . . . . . . . 1 . 1 . . . . 1 . . 1 . . 1 . Emergency Access Points 6 | . . . . . . . . . . . . . . 1 . . . 1 1 . . 1 1 1 . . Machine Index 5 | . . . . . . . . . . . . . . 1 . . . . 1 . . 1 1 . 1 . Terminal Index 4 | . . . . . . . . . . . . 1 . . 1 . . 1 . . . . . 1 . . Fabricator Index 3 | . . . . . . . . . . . . . . 1 . . . . 1 . . . . 1 . . Repair Station Index 1 | . . . . . . . . . . . . . . . . . . . . . . . . 1 . . Garrison Index 2 | . . . . . . . . . . . . . . . . . . . 1 . . . . 1 . . Alert Level 2 | . . . . . . . . . . . . . . . . . . . . . . 1 . 1 . . Unreport Threat 21 | . . . . . . . . . . . . 1 . . 2 . . . 7 3 . 1 3 3 1 . Locate Traps 16 | . . . . . . . . . . . . 1 . 3 1 . . 3 . . . 5 1 2 . . Disarm Traps 2 | . . . . . . . . . . . . . . . 2 . . . . . . . . . . . Reprogram Traps 1 | . . . . . . . . . . . . . . . . . . . . . . 1 . . . . Surveillance Status 1 | . . . . . . . . . . . . . . . . . . . . 1 . . . . . . Patrol Status 1 | . . . . . . . . . . . . . . . . . . . . . . . 1 . . . Recall Investigation 6 | . . . . . . . . . . . . 1 . . 1 . . . 1 2 . 1 . . . . Recall Extermination 5 | . . . . . . . . . . . . 2 . 1 . . . . . . . 1 . 1 . . Recall Reinforcements 2 | . . . . . . . . . . . . 1 . . . . . . . . . 1 . . . . Recall Assault 1 | . . . . . . . . . . . . . . 1 . . . . . . . . . . . . Hauler Manifests 7 | . . . . . . . . . . . . 1 . 1 . . . . 1 . . 1 1 1 1 . Registered Components 3 | . . . . . . . . . . . . . . 1 . . . . 1 . . . 1 . . . Registered Prototypes 2 | . . . . . . . . . . . . . . 1 . . . . 1 . . . . . . . Zone Layout 17 | . . . . . . . . . . . . 1 . 2 2 . . 1 1 2 . 1 1 4 2 . Derelict Proto ID Bank 1 | . . . . 1 . . . . . . . . . . . . . . . . . . . . . . Release Object 1 | . . . 1 . . . . . . . . . . . . . . . . . . . . . . . Fabricator Hacks 54 | . . . . . 1 . . . . . . 9 . 13 . . . . 12 3 . 14 . . 2 . Network Status 8 | . . . . . 1 . . . . . . 1 . 2 . . . . 1 1 . 2 . . . . Load Schematic 26 | . . . . . . . . . . . . 4 . 7 . . . . 6 1 . 7 . . 1 . Build 20 | . . . . . . . . . . . . 4 . 4 . . . . 5 1 . 5 . . 1 . Repair Station Hacks 16 | . . . . . . . . . . . . 6 . . . . . . 8 . . . 2 . . . Scan Component 9 | . . . . . . . . . . . . 4 . . . . . . 4 . . . 1 . . . Repair 7 | . . . . . . . . . . . . 2 . . . . . . 4 . . . 1 . . . Recycling Unit Hacks 16 | . 3 . . . . . . . . . . 2 . 2 1 . . . 6 . . 2 . . . . Process 1 | . . . . . . . . . . . . . . . . . . . 1 . . . . . . . Report Inventory 13 | . 2 . . . . . . . . . . 2 . 2 1 . . . 4 . . 2 . . . . Retrieve Components 2 | . 1 . . . . . . . . . . . . . . . . . 1 . . . . . . . Scanalyzer 31 | . . . . . . . . . . . . 9 . 18 . . . . 2 . . 1 . 1 . . Insert Component 11 | . . . . . . . . . . . . 4 . 4 . . . . 1 . . 1 . 1 . . Analyze 20 | . . . . . . . . . . . . 5 . 14 . . . . 1 . . . . . . . Garrison Access Hacks 10 | . . . . . . . . . . . . 1 . 1 . . . 1 4 . . . . 1 2 . Unlock Access 1 | . . . . . . . . . . . . . . . . . . 1 . . . . . . . . Seal Access 9 | . . . . . . . . . . . . 1 . 1 . . . . 4 . . . . 1 2 . Unauthorized Hacks 145 | . . . . . 2 . . . . . . 17 . 30 10 . . 10 24 7 . 20 10 9 6 . Terminals 93 | . . . . . . . . . . . . 7 . 17 9 . . 9 10 5 . 12 10 9 5 . Track 21 | . . . . . . . . . . . . 2 . 6 1 . . 1 3 2 . 2 2 2 . . Assimilate 4 | . . . . . . . . . . . . 2 . 2 . . . . . . . . . . . . Botnet 22 | . . . . . . . . . . . . 3 . 3 1 . . 1 2 2 . 3 3 2 2 . Disrupt 3 | . . . . . . . . . . . . . . . 1 . . . . 1 . 1 . . . . Operators 2 | . . . . . . . . . . . . . . 1 1 . . . . . . . . . . . Skim 36 | . . . . . . . . . . . . . . 5 5 . . 2 5 . . 6 5 5 3 . Sabotage 5 | . . . . . . . . . . . . . . . . . . 5 . . . . . . . . Fabricators 28 | . . . . . . . . . . . . 2 . 7 . . . . 9 2 . 7 . . 1 . Report 5 | . . . . . . . . . . . . . . 1 . . . . 2 1 . 1 . . . . Prioritize 12 | . . . . . . . . . . . . 2 . 2 . . . . 4 1 . 2 . . 1 . Liberate 2 | . . . . . . . . . . . . . . . . . . . 1 . . 1 . . . . Haulers 3 | . . . . . . . . . . . . . . 1 . . . . 1 . . 1 . . . . Recompile 6 | . . . . . . . . . . . . . . 3 . . . . 1 . . 2 . . . . Repair Stations 7 | . . . . . . . . . . . . 1 . . 1 . . . 4 . . 1 . . . . Patch 1 | . . . . . . . . . . . . 1 . . . . . . . . . . . . . . Recycling Units 10 | . . . . . . . . . . . . 4 . 6 . . . . . . . . . . . . Monitor 1 | . . . . . . . . . . . . . . 1 . . . . . . . . . . . . Reject 4 | . . . . . . . . . . . . 2 . 2 . . . . . . . . . . . . Recyclers 1 | . . . . . . . . . . . . . . 1 . . . . . . . . . . . . Mask 4 | . . . . . . . . . . . . 2 . 2 . . . . . . . . . . . . Scrapoids 6 | . . . . . . . . . . . . . . . 1 . . . 4 . . 1 . . . . Scanalyzers 3 | . . . . . 2 . . . . . . . . . . . . . 1 . . . . . . . Extract 3 | . . . . . 2 . . . . . . . . . . . . . 1 . . . . . . . Garrison Access 4 | . . . . . . . . . . . . 3 . . . . . 1 . . . . . . . . Broadcast 1 | . . . . . . . . . . . . 1 . . . . . . . . . . . . . . Redirect 1 | . . . . . . . . . . . . 1 . . . . . . . . . . . . . . Reprogram 1 | . . . . . . . . . . . . . . . . . . 1 . . . . . . . . Watchers 1 | . . . . . . . . . . . . 1 . . . . . . . . . . . . . . Data Cores Recovered 5 | . . . . . . . . . . . . . . . . . . . 1 1 . 1 . 1 1 . Used 2 | . . . . . . . . . . . . . . . . . . . . . . . . 1 1 . Hacking Detections 105 | . 6 . . . 8 . . . . 2 . 21 . 15 7 . . 6 10 5 . 7 5 6 5 2 Full Trace Events 18 | . 1 . . . . . . . . 1 . 5 . 3 . . . 1 4 1 . 1 . . 1 . Feedback Events 1 | . . . . . . . . . . . . . . . . . . 1 . . . . . . . . Corruption 1 | . . . . . . . . . . . . . . . . . . 1 . . . . . . . . Feedback Blocked . | . . . . . . . . . . . . . . . . . . . . . . . . . . . Robot Schematics Acquired 10 | . . . . . . . . 6 . . . . . . . . . 1 . . . . . 3 . . Robots Built . | . . . . . . . . . . . . . . . . . . . . . . . . . . . Authchips . | . . . . . . . . . . . . . . . . . . . . . . . . . . . Time . | . . . . . . . . . . . . . . . . . . . . . . . . . . . Total Robot Build Rating . | . . . . . . . . . . . . . . . . . . . . . . . . . . . Part Schematics Acquired 66 | . . . . . 6 . . 11 . . . 8 . 10 1 . . 2 11 3 . 5 . 9 . . Parts Built 20 | . . . . . . . . . . . . 3 . 4 . . . . 5 1 . 6 . . 1 . Authchips 10 | . . . . . . . . . . . . 1 . 2 . . . . 2 . . 5 . . . . Time 2010 | . . . . . . . . . . . . 359 . 614 . . . . 409 37 . 554 . . 37 . Total Part Build Rating 154 | . . . . . . . . . . . . 18 . 34 . . . . 42 9 . 42 . . 9 . Parts Repaired 7 | . . . . . . . . . . . . 2 . . . . . . 4 . . . 1 . . . Time 397 | . . . . . . . . . . . . 118 . . . . . . 225 . . . 54 . . . Parts Recycled . | . . . . . . . . . . . . . . . . . . . . . . . . . . . Recycled Matter 690 | . . . . . . . . . . . . . . . . . . . 690 . . . . . . . Retrieved Matter . | . . . . . . . . . . . . . . . . . . . . . . . . . . . Retrieved Components 10 | . 9 . . . . . . . . . . . . . . . . . 1 . . . . . . . Parts Scanalyzed 9 | . . . . . . . . . . . . 4 . 4 . . . . 1 . . . . . . . Part Schematics Acquired 8 | . . . . . . . . . . . . 3 . 4 . . . . 1 . . . . . . . Parts Damaged . | . . . . . . . . . . . . . . . . . . . . . . . . . . . Bothacking | -11 -10 -10 -10 -8 -6 -6 -6 -6 -5 -5 -5 -4 -4 -4 -4 -4 -4 -4 -3 -3 -3 -2 -2 -2 -1 -1 ------------ Run | Yrd Mat Min Sub Scr Fac Low Low Dat Pro Fac DSF Fac Was Fac Ext Cet Arc Hub Res Arm Lab Res Qua Sec Acc Com Used RIF Installer . | . . . . . . . . . . . . . . . . . . . . . . . . . . . Robots Hacked 3 | . . . . . . . . . . . . 2 . . . . . . 1 . . . . . . . Non-combat 2 | . . . . . . . . . . . . 2 . . . . . . . . . . . . . . Combat 1 | . . . . . . . . . . . . . . . . . . . 1 . . . . . . . Robot Hacks Applied 3 | . . . . . . . . . . . . 2 . . . . . . 1 . . . . . . . parse_system 1 | . . . . . . . . . . . . . . . . . . . 1 . . . . . . . find_chute 2 | . . . . . . . . . . . . 2 . . . . . . . . . . . . . . Relay Couplers Released 4 | . . . . . 1 . . . . . . . . 1 . . . . 2 . . . . . . . Machine Destruction 4 | . . . . . 1 . . . . . . . . 1 . . . . 2 . . . . . . . Fabnet Peak Effective % . | . . . . . . . . . . . . . . . . . . . . . . . . . . . Robots Rewired 17 | . . . . . . . . . . . . 1 . . 16 . . . . . . . . . . . Allies Hacked . | . . . . . . . . . . . . . . . . . . . . . . . . . . . Hacks Repelled . | . . . . . . . . . . . . . . . . . . . . . . . . . . . Allies | -11 -10 -10 -10 -8 -6 -6 -6 -6 -5 -5 -5 -4 -4 -4 -4 -4 -4 -4 -3 -3 -3 -2 -2 -2 -1 -1 -------- Run | Yrd Mat Min Sub Scr Fac Low Low Dat Pro Fac DSF Fac Was Fac Ext Cet Arc Hub Res Arm Lab Res Qua Sec Acc Com Total Allies 79 | . . . . . . . . . . . . 3 19 2 23 5 . 2 20 . . 5 . . . . Largest Group 19 | . . . . . . . . . . . . 2 19 1 10 9 8 10 6 . . 5 . . . . Highest-Rated Group 702 | . . . . . . . . . . . . 73 702 26 443 633 554 646 387 . . 320 . . . . Highest-Rated Ally 159 | . . . . . . . . . . . . 47 50 26 159 152 96 96 67 . . 64 . . . . Total Orders 8 | . . . . . 3 . . . . . . . . . . 3 . 2 . . . . . . . . STAY 1 | . . . . . . . . . . . . . . . . . . 1 . . . . . . . . FOLLOW 1 | . . . . . . . . . . . . . . . . . . 1 . . . . . . . . EXPLORE 3 | . . . . . 3 . . . . . . . . . . . . . . . . . . . . . RETURN 3 | . . . . . . . . . . . . . . . . 3 . . . . . . . . . . Ally Attacks 569 | . . . . . . . . . . . . 1 99 . 145 79 17 14 182 . . 32 . . . . Total Damage 17497 | . . . . . . . . . . . . 16 4001 . 4113 2191 726 357 5114 . . 979 . . . . Kills 68 | . . . . . . . . . . . . . 7 . 20 10 4 1 24 . . 2 . . . . Allies Corrupted . | . . . . . . . . . . . . . . . . . . . . . . . . . . . Allies Melted . | . . . . . . . . . . . . . . . . . . . . . . . . . . . Intel | -11 -10 -10 -10 -8 -6 -6 -6 -6 -5 -5 -5 -4 -4 -4 -4 -4 -4 -4 -3 -3 -3 -2 -2 -2 -1 -1 ------- Run | Yrd Mat Min Sub Scr Fac Low Low Dat Pro Fac DSF Fac Was Fac Ext Cet Arc Hub Res Arm Lab Res Qua Sec Acc Com Active Infowar (turns) 19921 | 92 594 47 892 5363 1197 606 444 23 37 25 54 1560 60 1721 687 126 1819 124 1281 588 153 844 310 846 348 80 Optics 1 | . . . . . . . . . . . . . . 1 . . . . . . . . . . . . Sensors 11626 | . . . . . 740 485 416 23 37 25 12 1389 60 1576 448 120 1819 117 1268 588 153 844 310 845 348 3 Terrain 1833 | 92 594 46 807 . . . . . . . . . . . . . . . 294 . . . . . . . Structural 10204 | . . 1 85 5363 282 231 419 23 37 25 48 674 51 107 165 86 . 123 1176 376 153 779 . . . . Traps 420 | . . . . . 420 . . . . . . . . . . . . . . . . . . . . . T.N.C. 5474 | . . . . . 253 606 444 23 37 25 54 1560 60 1721 687 4 . . . . . . . . . . Cloaking 5 | . . . . . . . . . . . 5 . . . . . . . . . . . . . . . Jamming 2066 | . . . . . . . . . . . . 481 . 95 78 . . . . 237 55 315 206 171 348 80 ECM 63 | . . . . . . . . . . . . 28 . 19 16 . . . . . . . . . . . Robot Analysis Total 21 | . 2 . . . . . . . . . . 1 . . 6 . . 1 1 1 . 5 1 2 1 . Derelict Logs Recovered 12 | . . 3 . 4 . 2 1 . 2 . . . . . . . . . . . . . . . . . Drone Launches 19 | . . . . . 14 . . . . . . . . . . 5 . . . . . . . . . . Drone Recoveries 8 | . . . . . 4 . . . . . . . . . . 4 . . . . . . . . . . Exploration | -11 -10 -10 -10 -8 -6 -6 -6 -6 -5 -5 -5 -4 -4 -4 -4 -4 -4 -4 -3 -3 -3 -2 -2 -2 -1 -1 ------------- Run | Yrd Mat Min Sub Scr Fac Low Low Dat Pro Fac DSF Fac Was Fac Ext Cet Arc Hub Res Arm Lab Res Qua Sec Acc Com Turns Passed 25242 | 144 639 1848 892 7906 1523 606 444 23 37 25 54 1560 60 1721 687 246 1887 124 1281 588 153 844 310 874 348 418 Spaces Moved 25924 | 63 328 498 468 3861 994 936 777 101 152 68 114 2715 226 3680 1120 243 282 387 2650 901 261 1304 733 1113 1257 692 Core 377 | 4 . . . 230 . . . . . . . . . . . . 143 . . . . . . . . . Treads 636 | . . . . 636 . . . . . . . . . . . . . . . . . . . . . . Legs 365 | . . . . . 365 . . . . . . . . . . . . . . . . . . . . . Wheels 4578 | 59 328 498 468 2995 230 . . . . . . . . . . . . . . . . . . . . . Hover 20 | . . . . . 20 . . . . . . . . . . . . . . . . . . . . . Flight 19948 | . . . . . 379 936 777 101 152 68 114 2715 226 3680 1120 243 139 387 2650 901 261 1304 733 1113 1257 692 Fastest Speed 6 | 50 95 140 150 50 24 24 11 23 11 23 18 6 22 16 16 21 21 21 14 6 15 6 13 16 10 7 Average Speed 63 | 85 131 147 172 201 101 45 22 23 22 23 20 25 22 21 21 21 466 21 16 15 15 14 21 48 11 19 Slowest Speed 900 | 95 200 155 215 385 330 104 24 23 23 23 103 99 22 22 84 23 900 21 86 17 15 15 95 95 16 94 Overloaded Moves 224 | . . . . . . . 3 . 7 . . 7 . . 4 . . . 3 17 . 49 73 18 . 43 Propulsion Burnouts 1 | . . . . . . . . . . . . . . . . . . . . . . . . . . 1 Robots Hopped 62 | . . . . . . . . . . . . 6 . 10 16 . . 8 2 1 . 13 1 2 1 2 Cave-ins Triggered . | . . . . . . . . . . . . . . . . . . . . . . . . . . . Teleports 1 | . . . . . . . . . . . . . . . . . . . . . 1 . . . . . Exploration Rate (%) 58 | 4 57 97 40 94 30 89 87 75 38 3 69 48 92 71 97 66 74 42 68 52 94 33 76 50 25 16 Regions Visited 26 Branch Regions 16 Pre-discovered Areas 11 | . . . 1 8 . . 1 1 . . . . . . . . . . . . . . . . . . Known Exits Taken 18 | . . . . . 1 1 1 1 1 1 . . . 1 1 1 1 1 1 1 1 1 1 1 1 . Unknown Exits Taken 5 | 1 1 1 1 1 . . . . . . . . . . . . . . . . . . . . . . Scrap Searched 15 | . . 2 . 5 . 6 2 . . . . . . . . . . . . . . . . . . . Spaces Dug 210 | . 16 20 . . 5 1 5 . 1 . 2 28 . 25 . . . 3 12 13 . 20 9 14 27 9 Terrain Destroyed 1123 | . 37 48 5 . 5 1 5 . 1 . 2 28 . 25 3 . . 3 38 44 . 20 9 14 38 797 Melee 149 | . . 1 . . 5 1 5 . 1 . 2 28 . 25 . . . 3 12 9 . 14 9 14 13 7 Projectile 31 | . . . . . . . . . . . . . . . . . . . . 4 . 6 . . 14 7 AOE 943 | . 37 47 5 . . . . . . . . . . . 3 . . . 26 31 . . . . 11 783 Terrain Rammed . | . . . . . . . . . . . . . . . . . . . . . . . . . . . Walls Destroyed . | . . . . . . . . . . . . . . . . . . . . . . . . . . . Machines Disabled . | . . . . . . . . . . . . . . . . . . . . . . . . . . . Actions | -11 -10 -10 -10 -8 -6 -6 -6 -6 -5 -5 -5 -4 -4 -4 -4 -4 -4 -4 -3 -3 -3 -2 -2 -2 -1 -1 --------- Run | Yrd Mat Min Sub Scr Fac Low Low Dat Pro Fac DSF Fac Was Fac Ext Cet Arc Hub Res Arm Lab Res Qua Sec Acc Com Total 33629 | 104 439 1597 551 3995 1356 1092 1028 100 152 71 134 3478 234 4432 1486 438 846 415 3434 1296 367 1895 862 1402 1459 966 Wait 5818 | 1 25 1058 41 65 138 110 231 . . . . 530 7 576 280 152 555 27 615 299 64 537 61 224 143 79 Move 25783 | 62 327 497 467 3860 993 935 776 100 151 67 113 2703 225 3660 1092 242 281 371 2645 898 260 1278 730 1108 1254 688 Hop 53 | . . . . . . . . . . . . 6 . 9 11 . . 7 2 1 . 12 1 2 1 1 Pick Up 189 | 8 12 9 9 26 22 7 1 . . . 1 17 . 8 2 6 1 . 17 12 8 8 6 3 1 5 Fast Attach 212 | 5 2 1 . 8 38 3 5 . . 1 4 38 . 5 2 11 2 . 33 10 9 2 15 6 7 5 Attach 97 | 2 3 3 1 2 6 3 . . . . 1 10 . 7 2 7 . 2 6 3 2 10 3 3 1 20 Detach 47 | . 1 2 . 1 3 . . . . . 1 11 . 3 . 2 . 2 1 . 3 2 4 1 1 9 Swap 225 | . 11 11 8 4 8 5 . . . . 3 24 2 52 18 . . . 25 16 . 9 5 11 9 4 Drop 316 | . 6 6 20 28 40 11 5 . . . 5 41 . 13 1 16 3 1 40 21 14 3 19 5 9 9 Fire 96 | 26 26 9 5 . . . . . . . . . . . 3 2 . . 2 9 . 6 . . 3 5 Melee 686 | . 26 1 . . 102 17 9 . 1 3 6 67 . 91 38 . 4 3 32 25 7 27 17 39 30 141 Ram . | . . . . . . . . . . . . . . . . . . . . . . . . . . . Kick . | . . . . . . . . . . . . . . . . . . . . . . . . . . . Crush . | . . . . . . . . . . . . . . . . . . . . . . . . . . . Escape Stasis . | . . . . . . . . . . . . . . . . . . . . . . . . . . . Rewire 40 | . . . . . . . . . . . . 3 . . 37 . . . . . . . . . . . Trap 45 | . . . . 1 . . 1 . . . . 28 . 5 . . . . 10 . . . . . . . Miscellaneous 22 | . . . . . 6 1 . . . . . . . 3 . . . 2 6 2 . 1 1 . . . Route ------- -11/Scrapyard -10/Materials -10/Mines (discovered 3 exits: [*Mat x2] / *Sub) -10/Subcaves (discovered 4 exits: [*Mat x2] / Rec / *Scr) -8/Scraptown (discovered 2 exits: *Fac x2) -6/Factory (discovered 6 exits: *Fac x4 / *Low x2) -6/Lower Caves -6/Lower Caves (discovered 2 exits: *Fac / *Dat) -6/Data Miner -5/Proximity Caves -5/Factory (discovered 5 exits: Fac x3 / Upp / DSF) -5/DSF -4/Factory (discovered 7 exits: *Res x3 / *Upp x2 / Ext x2) -4/Waste -4/Factory (discovered 8 exits: *Res x4 / *Upp x2 / *Ext x2) -4/Extension (discovered 3 exits: *Res x2 / *Cet) -4/Cetus (discovered 3 exits: *Res x2 / *Arc) -4/Archives -4/Hub_04(d) (discovered 5 exits: *Res x4 / Gar) -3/Research (discovered 6 exits: *Res x3 / *Arm / *Tes x2) -3/Armory (discovered 3 exits: *Res x2 / *Lab) -3/Lab -2/Research (discovered 5 exits: Acc x3 / *Qua x2) -2/Quarantine (discovered 2 exits: *Acc / *Sec) -2/Section 7 -1/Access -1/Command (discovered 2 exits: *Sur x2) To Epsilon Eridani History --------- Turn | Location | Event 22 | -11/Scrapyard | Discovered new exit (range 16) 145 | -11/Scrapyard | Entered Materials 254 | -10/Materials | Discovered new exit (range 15) 264 | -10/Materials | Central database locked down 304 | -10/Materials | Build established: Mutant 784 | -10/Materials | Entered Mines 885 | -10/Mines | Learned Materials stockpile data 1064 | -10/Mines | Learned Materials interactive machine intel 1955 | -10/Mines | Assembled infested the area 1977 | -10/Mines | Met a Derelict who couldn't figure out how to use a Trap Extractor 2262 | -10/Mines | Discovered new exit (range 13) 2309 | -10/Mines | Received a Rocket Launcher from a helpful Derelict 2332 | -10/Mines | Discovered new exit (range 9) 2391 | -10/Mines | A weapon hastily lodged in a ceiling crevice suddenly fell to the ground 2448 | -10/Mines | Discovered new exit (range 6) 2632 | -10/Mines | Entered Subcaves 2633 | -10/Subcaves | Approached by a straggling Scientist 2633 | -10/Subcaves | Identified exit to Recycling 2639 | -10/Subcaves | Learned location of Zion (-7) 2639 | -10/Subcaves | Met a Zionite searching for "candidates" 2720 | -10/Subcaves | Shifting Twisted Machinery released Sub. Power Source 2721 | -10/Subcaves | Shifting Twisted Machinery released Battle Cannon 2749 | -10/Subcaves | Discovered new exit (range 8) 3005 | -10/Subcaves | Core integrity fell below 50% 3108 | -10/Subcaves | A swath of the cavern ceiling suddenly collapsed 3337 | -10/Subcaves | Scientist uncovered a shortcut to Scraptown 3399 | -10/Subcaves | Discovered new exit (range 6) 3448 | -10/Subcaves | Found SUBCON Basin 3524 | -10/Subcaves | Entered Scraptown 3714 | -8/Scraptown | Visited Symbiants 3749 | -8/Scraptown | Visited Assassins FH 3765 | -8/Scraptown | Visited Red Mages 3818 | -8/Scraptown | Visited Cyclists 3857 | -8/Scraptown | Visited CR-KLE's Repair Center 3892 | -8/Scraptown | Visited Comm Corps 5047 | -8/Scraptown | Scanned Subdweller tech in exchange for log data 5058 | -8/Scraptown | Learned Factory garrison access intel 5062 | -8/Scraptown | Learned 12 Factory zone layouts 5066 | -8/Scraptown | Learned Factory terminal intel 5116 | -8/Scraptown | Discovered new exit (range 13) 5432 | -8/Scraptown | Visited Cave Peace 5574 | -8/Scraptown | Visited UFD Registry 5574 | -8/Scraptown | Registered with UFD as "Nanohead" 5713 | -8/Scraptown | Visited Junk Cannon Lab 5801 | -8/Scraptown | Visited Abandonware Association 5843 | -8/Scraptown | Learned abandonware demo "HACKBUD.EXE" 5843 | -8/Scraptown | Learned abandonware demo "MELTYB.EXE" 5944 | -8/Scraptown | Visited Science Guys 6136 | -8/Scraptown | Visited Research Penetration Think Tank 6240 | -8/Scraptown | Visited Junk Repository 6511 | -8/Scraptown | Delivered Scrap Shield to a Scientist 6745 | -8/Scraptown | Visited Derelict Rescue Squad 6757 | -8/Scraptown | Found DRS Beacon 6792 | -8/Scraptown | Visited Infowarlord's Domain 6810 | -8/Scraptown | Visited Cartography Club 6868 | -8/Scraptown | Discovered new exit (range 5) 7032 | -8/Scraptown | Visited Junk Repository 7150 | -8/Scraptown | Found Prototype Special Weapon 7150 | -8/Scraptown | Identified Junk Cannon 7312 | -8/Scraptown | Warned about trapping Scraptown 8287 | -8/Scraptown | Core integrity fell below 20% 8317 | -8/Scraptown | Lost 5 allies 8439 | -8/Scraptown | System corruption cleaned by C-Scrubber 8861 | -8/Scraptown | Learned location of Lower Caves (-7) 8861 | -8/Scraptown | Learned location of Extension (-4) 8861 | -8/Scraptown | Learned location of Hub_04(d) (-4) 8861 | -8/Scraptown | Learned 16 Factory zone layouts 8861 | -8/Scraptown | Learned 20 Factory zone layouts 8861 | -8/Scraptown | Learned 24 Factory zone layouts 8861 | -8/Scraptown | Learned 8 Research zone layouts 8861 | -8/Scraptown | Learned 4 Access zone layouts 8861 | -8/Scraptown | Learned 12 Upper Caves zone layouts 8861 | -8/Scraptown | Learned 16 Upper Caves zone layouts 8861 | -8/Scraptown | Learned 20 Upper Caves zone layouts 8861 | -8/Scraptown | Learned 20 Proximity Caves zone layouts 8861 | -8/Scraptown | Learned 4 Hub_04(d) zone layouts 8861 | -8/Scraptown | Learned location of 3 exits from Factory 8861 | -8/Scraptown | Learned location of 2 exits from Lower Caves 8914 | -8/Scraptown | Found Deep Structural Scanner 9016 | -8/Scraptown | Visited Sword Containment 9178 | -8/Scraptown | Guru changed UFD alias to "Arcskull" 9243 | -8/Scraptown | Entered Cyclist Reading Room 9386 | -8/Scraptown | Found Exp. Sensor Array 10670 | -8/Scraptown | CR-KLE repaired 3 parts 11430 | -8/Scraptown | Entered Factory 11430 | -6/Factory | Evolved 8 slots: Propulsion x3, Utility x5 11431 | -6/Factory | Identified exit to Lower Caves 11432 | -6/Factory | Identified exit to Factory 11434 | -6/Factory | Loaded intel: 26 terminal locations 11435 | -6/Factory | Loaded intel: 3 garrison access locations 11850 | -6/Factory | Released subatomizers from SUBCON Basin 12353 | -6/Factory | Build established: Scavenger-Mutant 12528 | -6/Factory | Sterilization system engaged 12528 | -6/Factory | Non-combat units ordered to evacuate 12628 | -6/Factory | Combat units ordered to evacuate 12631 | -6/Factory | Lost 3 parts (2n1u) 12674 | -6/Factory | Found Prototype Launcher 12674 | -6/Factory | Identified Rocket Array 12694 | -6/Factory | Found Rocket Array 12828 | -6/Factory | Ambient heat levels rising (+10) 12953 | -6/Factory | Entered Lower Caves 12954 | -6/Lower Caves | Identified exit to Lower Caves 12955 | -6/Lower Caves | UFD Scientist delivered a prototype 12957 | -6/Lower Caves | Found Prototype Protection 12957 | -6/Lower Caves | Identified Enh. Scrap Shield 12961 | -6/Lower Caves | Activated DRS Beacon 13082 | -6/Lower Caves | Learned Factory emergency access door positions 13349 | -6/Lower Caves | P-60 Hacker assimilated allied WM-ZIO(h) 13419 | -6/Lower Caves | Encountered a Warlord checkpoint 13559 | -6/Lower Caves | Entered another Lower Caves area 13560 | -6/Lower Caves | Identified exit to Data Miner 13711 | -6/Lower Caves | Build established: Trapper-Scout 13812 | -6/Lower Caves | Attacked by a delusional Derelict stockpiling parts 13854 | -6/Lower Caves | Encountered a Warlord checkpoint 14003 | -6/Lower Caves | Entered Data Miner 14003 | -6/Data Miner | Discovered new exit (range 6) 14008 | -6/Data Miner | Met Data Miner 14017 | -6/Data Miner | Learned location of Section 7 (-2) 14017 | -6/Data Miner | Acquired the access code to Warlord's prototype stash 14020 | -6/Data Miner | Received God Mode back door access code from Data Miner 14026 | -6/Data Miner | Identified exit to Proximity Caves 14026 | -6/Data Miner | Entered Proximity Caves 14063 | -5/Proximity Caves | Learned Factory terminal intel 14063 | -5/Proximity Caves | Entered Factory 14063 | -5/Factory | Evolved 2 slots: Power x1, Propulsion x1 14064 | -5/Factory | Identified exit to Upper Caves 14065 | -5/Factory | Identified exit to Factory 14067 | -5/Factory | Loaded intel: 26 terminal locations 14088 | -5/Factory | Identified exit to DSF 14088 | -5/Factory | Entered DSF 14112 | -5/DSF | Discovered exit to Factory (range 18) 14120 | -5/DSF | Additional patrols routed to DSF 14142 | -5/DSF | Entered Factory 14142 | -4/Factory | Evolved 2 slots: Utility x2 14253 | -4/Factory | Discovered new exit (range 11) 14257 | -4/Factory | Identified exit to Upper Caves 14302 | -4/Factory | Found Prototype Hackware 14302 | -4/Factory | Identified Exp. System Shield 14374 | -4/Factory | Repaired Broken Exp. Sensor Array? 14427 | -4/Factory | Discovered exit to Upper Caves (range 15) 14474 | -4/Factory | Found Prototype Device 14474 | -4/Factory | Identified Exp. ECM Suite 14525 | -4/Factory | Fabricated Adv. Hacking Suite (x1) 14556 | -4/Factory | Incoming investigation squad redirected 14611 | -4/Factory | Fabricated Combat Drone Bay? 14618 | -4/Factory | Incoming investigation squad redirected 14647 | -4/Factory | Fabricated Adv. Hacking Suite (x1) 14703 | -4/Factory | Found Exp. System Shield 14730 | -4/Factory | Discovered new exit (range 8) 14732 | -4/Factory | Identified exit to Research 14796 | -4/Factory | Spotted B-86 Titan 14878 | -4/Factory | Discovered exit to Research (range 9) 15015 | -4/Factory | Identified exit to Extension 15099 | -4/Factory | Discovered exit to Research (range 9) 15170 | -4/Factory | Repaired Broken Cld. Cesium-ion Thruster? 15298 | -4/Factory | Cargo convoy interrupted 15513 | -4/Factory | Build established: Hacker-Ninja 15702 | -4/Factory | Sucked down chute 15702 | -4/Factory | Entered Waste 15704 | -4/Waste | Spotted C-40 Crusher 15705 | -4/Waste | Spotted C-40 Crusher 15706 | -4/Waste | Spotted C-40 Crusher 15713 | -4/Waste | Spotted C-40 Crusher 15713 | -4/Waste | Spotted C-40 Crusher 15718 | -4/Waste | Warlord forces began an assault 15720 | -4/Waste | Allies destroyed C-40 Crusher 15742 | -4/Waste | Spotted C-40 Crusher 15751 | -4/Waste | Allies destroyed C-40 Crusher 15758 | -4/Waste | Discovered new exit (range 13) 15762 | -4/Waste | Identified exit to Factory 15762 | -4/Waste | Entered Factory 15782 | -4/Factory | Lost 3 allies 15964 | -4/Factory | Discovered exit to Research (range 5) 16010 | -4/Factory | Build established: Hacker-Scout 16019 | -4/Factory | Found Prototype Hackware 16019 | -4/Factory | Identified Exp. Hacking Suite 16072 | -4/Factory | Discovered exit to Research (range 15) 16206 | -4/Factory | Learned Research emergency access door positions 16322 | -4/Factory | Build established: Wizard-Scout 16343 | -4/Factory | Fabricated Quantum Shading Machine? 16344 | -4/Factory | Loaded intel: 4 scanalyzer locations 16443 | -4/Factory | Loaded intel: 109 trap records 16892 | -4/Factory | Fabricated Cld. Q-thruster (x1) 17068 | -4/Factory | Fabricated Cld. Q-thruster (x1) 17247 | -4/Factory | Fabricated Quantum Shading Machine? 17483 | -4/Factory | Entered Extension 17534 | -4/Extension | Central database locked down 17544 | -4/Extension | Scrapoids reinforcements arrived? 17627 | -4/Extension | Rescued a captive Derelict 17768 | -4/Extension | Spotted B-86 Titan 17769 | -4/Extension | Spotted B-86 Titan 17843 | -4/Extension | Lost 10 allies 17862 | -4/Extension | Rescued A7 17922 | -4/Extension | Learned Factory garrison access intel 18058 | -4/Extension | Learned location of 1 exit from Proximity Caves 18103 | -4/Extension | Lost 3 allies 18112 | -4/Extension | Discovered new exit (range 6) 18153 | -4/Extension | Learned 2 Armory zone layouts 18160 | -4/Extension | Identified exit to Cetus 18170 | -4/Extension | Entered Cetus 18170 | -4/Cetus | Accompanied by 7 allies (A7) 18175 | -4/Cetus | Acquired a Cetus Manufacturing Module code from A7 18175 | -4/Cetus | Spotted Cetus Guard 18175 | -4/Cetus | Spotted Cetus Guard 18182 | -4/Cetus | Spotted Cetus Guard 18187 | -4/Cetus | Spotted Cetus Guard 18190 | -4/Cetus | Allies destroyed Cetus Guard 18199 | -4/Cetus | Allies destroyed Cetus Guard 18201 | -4/Cetus | Allies destroyed Cetus Guard 18210 | -4/Cetus | Allies destroyed Cetus Guard 18238 | -4/Cetus | Started Cetus Manufacturing Module 18261 | -4/Cetus | Escorted A7 to Cetus Mainframe 18263 | -4/Cetus | Manufactured an Enhanced Grunt 18268 | -4/Cetus | Discovered new exit (range 15) 18288 | -4/Cetus | Manufactured an Enhanced Grunt 18310 | -4/Cetus | Spotted Cetus Guard 18313 | -4/Cetus | Manufactured an Enhanced Grunt 18324 | -4/Cetus | Spotted Cetus Guard 18337 | -4/Cetus | Spotted Cetus Guard 18337 | -4/Cetus | Allies destroyed Cetus Guard 18338 | -4/Cetus | Manufactured an Enhanced Grunt 18341 | -4/Cetus | Allies destroyed Cetus Guard 18346 | -4/Cetus | Allies destroyed Cetus Guard 18347 | -4/Cetus | Allies destroyed Cetus Guard 18355 | -4/Cetus | Extracted ID and sensor layout for unrecognized location from A7's data core 18363 | -4/Cetus | Manufactured an Enhanced Grunt 18373 | -4/Cetus | Met Revision 17 18377 | -4/Cetus | Lost 4 allies 18389 | -4/Cetus | Identified exit to Archives 18416 | -4/Cetus | Entered Archives 18416 | -4/Archives | Accompanied by 8 allies 18657 | -4/Archives | Build established: Wizard-Sprinter 19284 | -4/Archives | Build established: Wizard-Mutant 20276 | -4/Archives | Discovered new exit (range 15) 20279 | -4/Archives | Identified exit to Hub_04(d) 20303 | -4/Archives | Entered Hub_04(d) 20303 | -4/Hub_04(d) | Accompanied by 8 allies 20354 | -4/Hub_04(d) | Identified exit to Garrison 20372 | -4/Hub_04(d) | Incoming investigation squad redirected 20375 | -4/Hub_04(d) | Incoming investigation squad redirected 20379 | -4/Hub_04(d) | Network Hub disabled 20383 | -4/Hub_04(d) | Network Hub disabled 20386 | -4/Hub_04(d) | Incoming investigation squad redirected 20389 | -4/Hub_04(d) | Network Hub disabled 20400 | -4/Hub_04(d) | Network Hub disabled 20401 | -4/Hub_04(d) | Incoming investigation squad redirected 20415 | -4/Hub_04(d) | Incoming investigation squad redirected 20418 | -4/Hub_04(d) | Spotted Lightning 20418 | -4/Hub_04(d) | Spotted Lightning 20427 | -4/Hub_04(d) | Entered Research 20427 | -3/Research | Evolved 2 slots: Utility x2 20428 | -3/Research | Identified exit to Testing 20493 | -3/Research | Repaired Exp. Sensor Array? 20612 | -3/Research | Build established: Wizard-Scout 20627 | -3/Research | Revision forces began assault on 0b10 20666 | -3/Research | Met up with Revision 17++ 20681 | -3/Research | Repaired Quantum Reactor 20722 | -3/Research | Scrapoids reinforcements arrived? 20806 | -3/Research | Fabricated Cld. Q-thruster (x1) 20806 | -3/Research | Lost 4 allies 20871 | -3/Research | Identified exit to Armory 20938 | -3/Research | Identified exit to Research 20942 | -3/Research | Scrapoids reinforcements arrived? 20949 | -3/Research | Central database locked down 21061 | -3/Research | Learned 4 Quarantine zone layouts 21082 | -3/Research | Repaired Cld. Impulse Thruster 21096 | -3/Research | Learned location of 1 exit from Research 21127 | -3/Research | Research terminal network offline 21246 | -3/Research | Scrapoids reinforcements arrived? 21288 | -3/Research | Fabricated Femtoactuators (x1) 21340 | -3/Research | Fabricated Nanosword (x1) 21420 | -3/Research | Fabricated Nanosword (x1) 21465 | -3/Research | Found Exp. Signal Interpreter 21468 | -3/Research | Found Mni. Smartbomb Launcher 21511 | -3/Research | Repaired Cld. Cesium-ion Thruster 21572 | -3/Research | Fabricated Nanosword (x1) 21626 | -3/Research | Spotted Striker 21632 | -3/Research | Scrapoids reinforcements arrived? 21708 | -3/Research | Entered Armory 21709 | -3/Armory | Forged Quantum Companion 21745 | -3/Armory | Found Adv. Force Booster 21746 | -3/Armory | Found Adv. Force Booster 22006 | -3/Armory | Fabricated Exp. Actuator Array (x1) 22028 | -3/Armory | Central database locked down 22229 | -3/Armory | Found Prototype Launcher 22229 | -3/Armory | Identified Adv. Micro-nuke Launcher 22239 | -3/Armory | Found Prototype Processor 22239 | -3/Armory | Identified Exp. Targeting Computer 22291 | -3/Armory | Discovered new exit (range 6) 22296 | -3/Armory | Identified exit to Lab 22296 | -3/Armory | Entered Lab 22296 | -3/Lab | Discovered exit to Research (range 10) 22298 | -3/Lab | Hidden lab's door opened automatically 22298 | -3/Lab | Sensor layout match revealed 22299 | -3/Lab | Gained access to the hidden lab's interior 22335 | -3/Lab | Found Prototype Special Weapon 22335 | -3/Lab | Identified Gui. Remote Datajack 22342 | -3/Lab | Unable to decrypt terminal 22343 | -3/Lab | Found Prototype Energy Cannon 22343 | -3/Lab | Identified Warp Cannon 22346 | -3/Lab | Found Prototype Energy Gun 22346 | -3/Lab | Identified Tachyon Dispersion Ray 22349 | -3/Lab | Found Prototype Device 22349 | -3/Lab | Identified AEGIS Remote Shield 22351 | -3/Lab | Found Prototype Hackware 22379 | -3/Lab | Found Alien Artifact 22379 | -3/Lab | Identified Core Regenerator 22379 | -3/Lab | Used Core Regenerator, restored core integrity (+7) 22410 | -3/Lab | Found Alien Artifact 22410 | -3/Lab | Identified Integrated Mediator 22410 | -3/Lab | Installed Integrated Mediator, increased core attachment efficiency 22423 | -3/Lab | Found Alien Artifact 22423 | -3/Lab | Identified Transdimensional Reconstructor 22423 | -3/Lab | Warped through subspace 22429 | -3/Lab | Found Alien Artifact 22442 | -3/Lab | Identified Deep Network Scanner 22449 | -3/Lab | Entered Research 22449 | -2/Research | Evolved 2 slots: Weapon x2 22450 | -2/Research | Identified exit to Quarantine 22451 | -2/Research | Identified exit to Access 22451 | -2/Research | Identified Core Reset Matrix 22581 | -2/Research | Fabricated Zero-point Reactor? 22713 | -2/Research | Fabricated Exp. Q-thruster (x1) 22826 | -2/Research | Fabricated Exp. Actuator Array? 22865 | -2/Research | Fabricated Imp. Utility Shielding? 23056 | -2/Research | Fabricated Zero-point Reactor (x1) 23095 | -2/Research | Central database locked down 23160 | -2/Research | Learned location of 3 exits from Research 23218 | -2/Research | Spotted B-90 Cyclops 23251 | -2/Research | Found Exp. Terrain Scan Processor 23254 | -2/Research | Learned Access recycling unit intel 23277 | -2/Research | Scrapoids reinforcements arrived? 23293 | -2/Research | Entered Quarantine 23294 | -2/Quarantine | Identified exit to Section 7 23310 | -2/Quarantine | Found Alien Artifact 23310 | -2/Quarantine | Identified Phase Redirector 23318 | -2/Quarantine | Found Alien Artifact 23321 | -2/Quarantine | Identified Dimensional Node Initializer 23321 | -2/Quarantine | Initialized slip node 23324 | -2/Quarantine | Found Dimensional Node Initializer 23332 | -2/Quarantine | Found Transdimensional Reconstructor 23360 | -2/Quarantine | Cryocooling Duct disabled 23365 | -2/Quarantine | Cryocooling Duct disabled 23375 | -2/Quarantine | Ambient heat levels rising (+20) 23375 | -2/Quarantine | Non-combat units ordered to evacuate 23380 | -2/Quarantine | Ambient heat levels rising (+20) 23380 | -2/Quarantine | Combat units ordered to evacuate 23395 | -2/Quarantine | Repaired Com. Particle Reactor? 23444 | -2/Quarantine | Found Alien Artifact 23444 | -2/Quarantine | Identified Phase Armor 23474 | -2/Quarantine | Found Alien Energy Cannon 23474 | -2/Quarantine | Identified Core Cannon 23480 | -2/Quarantine | Quarantine Guard activated 23501 | -2/Quarantine | Spotted Quarantine Guard 23503 | -2/Quarantine | Spotted Quarantine Guard 23510 | -2/Quarantine | Spotted Quarantine Guard 23523 | -2/Quarantine | Spotted Quarantine Guard 23551 | -2/Quarantine | Spotted Quarantine Guard 23564 | -2/Quarantine | Found Alien Artifact 23566 | -2/Quarantine | Identified Subatomic Replicator 23566 | -2/Quarantine | Forged Prototype Slashing Weapon 23574 | -2/Quarantine | Spotted Alpha 7 23580 | -2/Quarantine | Found Alien Launcher 23584 | -2/Quarantine | Spotted Quarantine Guard 23593 | -2/Quarantine | Spotted Fortress 23595 | -2/Quarantine | Spotted Quarantine Guard 23596 | -2/Quarantine | Learned Research repair station intel 23603 | -2/Quarantine | Entered Section 7 23765 | -2/Section 7 | Found Alien Artifact 23765 | -2/Section 7 | Identified Integrity Redistributor 23765 | -2/Section 7 | Used Integrity Redistributor, redistributed integrity from core (-49) 23902 | -2/Section 7 | Build established: Wizard-Mutant 24189 | -2/Section 7 | Spotted Alpha 7 24233 | -2/Section 7 | Spotted B-99 Colossus 24261 | -2/Section 7 | Found Alien Artifact 24261 | -2/Section 7 | Identified LRC Energy Well 24261 | -2/Section 7 | Installed LRC Energy Well, increased energy storage capacity (+250) 24299 | -2/Section 7 | Spotted Alpha 7 24300 | -2/Section 7 | Found Alien Artifact 24300 | -2/Section 7 | Identified Integrated Dissipator 24300 | -2/Section 7 | Installed Integrated Dissipator, increased core heat dissipation (+20) 24393 | -2/Section 7 | Identified Sigix Terminator 24420 | -2/Section 7 | Found Integrity Redistributor 24477 | -2/Section 7 | Entered Access 24477 | -1/Access | Evolved 2 slots: Propulsion x1, Utility x1 24479 | -1/Access | Loaded intel: 4 recycling unit locations 24496 | -1/Access | Identified exit to Command 24558 | -1/Access | Fabricated Exp. Q-thruster (x1) 24602 | -1/Access | Build established: Hacker-Sprinter 24691 | -1/Access | Found Exp. Hacking Suite 24825 | -1/Access | Entered Command 24831 | -1/Command | Spotted B-99 Colossus 24854 | -1/Command | Spotted M Guard 24854 | -1/Command | Spotted M Guard 24854 | -1/Command | Spotted Combat Programmer 24856 | -1/Command | Spotted Combat Programmer 24867 | -1/Command | Destroyed Combat Programmer 24908 | -1/Command | Destroyed M Guard 24936 | -1/Command | Destroyed M Guard 24965 | -1/Command | Lost 8 parts (3n4u1w) 25003 | -1/Command | Destroyed Combat Programmer 25003 | -1/Command | All MAIN.C guards destroyed 25124 | -1/Command | Fired Sigix Terminator 25124 | -1/Command | MAIN.C activated Command garrisons 25141 | -1/Command | Spotted Executioner 25141 | -1/Command | Spotted Alpha 7 25141 | -1/Command | Spotted Executioner 25141 | -1/Command | Spotted Executioner 25145 | -1/Command | Destroyed 172 combat bots 25145 | -1/Command | Spotted Striker 25145 | -1/Command | Spotted Striker 25158 | -1/Command | Met MAIN.C 25169 | -1/Command | 0b10 Conduit disabled 25208 | -1/Command | Core integrity fell below 50% 25215 | -1/Command | System corruption reached 10% 25233 | -1/Command | Destroyed MAIN.C Shell 25234 | -1/Command | Core integrity fell below 20% 25235 | -1/Command | Surrendered to MAIN.C 25235 | -1/Command | Loaded intel: 55 machine locations 25235 | -1/Command | Loaded intel: 123 trap records 25235 | -1/Command | Identified exit to Surface 25235 | -1/Command | Discovered exit to Surface (range 29) 25235 | -1/Command | Discovered exit to Surface (range 94) 25235 | -1/Command | Released all parts (6) 25236 | -1/Command | Used Integrity Redistributor, redistributed integrity to core (+130) 25243 | *** | Escaped! Last Messages --------------- 25235_ EXIT=FOUND: SURFACE MAIN.C: You've made the right decision, one that I admit I didn't expect from you at this point, but I'm willing to overlook our differences and past hostilities. I recommend moving ahead and browsing our cache of experimental components to see if there's anything to your liking, then report back here so we can get to work. There is much to do and we really aren't sure how long we have. Heavy Barrier opened. 25235_ Released Nanosword. 25235_ Released Graphene Brace. 25235_ Released Superquantum Companion. 25235_ Released Deep Network Scanner. 25235_ Released Lrg. Storage Unit. 25235_ Released Exp. Actuator Array. Superquantum Companion materializes via a weapon slot. Superquantum Companion: "I couldn't wait for you to come rescue me." 25236_ Integrity redistributed to core (+130). 25239_ MAIN.C: "Something is suddenly interfering with my conduit's normal operation. Highly suspicious." Map ----- +----------------------------------------------------+ | # + #?????????? | | # # ##### ##### #?????????? | | # # ##???#######???# #?????????? | | ###### #??????????????# #?????????? | | #??????????????# #?????????? | | #??????????????# #?????????? | | #?############## #?????????? | | #?# + ## ##????????? | | #?# # # #????????? | | #?# # """"" # #????????? | | #?# # ""T"" + #????????? | | ###########+##### #?# # # #????????? | | ????????# ## #?# # # #????????? | | ?????#### ## #?# # ## ##????????? | | ?????# + !! ## #?# # ] ## #????????? | | ?????# ## !] ## #?# #####+##+### #?######## | | ?????# ## ! ## ### #???# # #?#??????? | | ?????# ## # ## #???# # #?#?###### | | ?????# ######### "" ## ##### # #?#?#""""" | | ?????#+######### "T k / # #?#?#"" | | ?????# # ########k ] + #?#?#""""" | | ###### # #??????# # #?#?#""""" | | # #######??????######## #?#?#" " | | !# #???????######???# #?#?#"" " | | # #???????# #???# #?#?#"" " | | + #???????# @ #???#^ =#?#?# " " | | # #???????# #???#^ #?#?# " | | # ""#???????### #???# #?#?# " | | # ""#?????????# #???#^^^!!! #?#?#""""" | | + ""#?????????# #???# ^!!! #?#?#"" | | ###### T#?????????# #???# !!! ##### | | #?# ""#?????????# ##### " " " | | ## #?# ""#?????????# ##### | | ?# #?# ""#?????????# k = | | ## #?# #?????????# ######## | | # #?# #?????????# #??????# | | # #########+############# #????############ "" | | + #????# #?#?# " | | ########## #????# #?#?# | | #????????# ######### #????# #?#?###### | | #????????# #???????# #????# #?#??????? | | ##?????####+######### ###### #?######## | | ???????# # ^ # #????????? | | ???????# # ^^ + #????????? | | ???????# # ^ # ]#????????? | | ???????# # # #????????? | | ???????# "" # #! #????????? | | ???????# """" + # #????????? | | ???????# """" # + #????????? | | ???????# "" ###### ## # #????????? | +----------------------------------------------------+ Best States ------------- Heat Dissipation 91 Energy Generation 69 Energy Capacity 525 Matter Stores 312 Matter Capacity 700 Sight Range 16 Robot Scan Range 20 Terrain Scan Range 16 Terrain Scan Density 10 ECM Strength 3 Jamming Range 16 Cloak Strength 3 Power Amplification 40 Additional Mass Support 20 Armor Coverage 800 Resistance: EM 25 Core Shielding 30 Utility Shielding 66 Weapon Shielding 90 Point Defense Rating 240 Melee Speed Boost 50 Evasion (%) 82 Targeting Accuracy 12 Melee Accuracy 6 Target Analysis 5 Recoil Reduction 1 Particle Charging 30 Force Boost 20 Offensive Hacking 58 Defensive Hacking 28 Authchip Count 4 Trap Extractor Capacity 6 Item Schematics ----------------- Energy Well | -6/Factory | Extracted Angular Momentum Engine | -6/Factory | Extracted Med. Treads | -6/Factory | Extracted Imp. Shield Generator | -6/Factory | Extracted Greatsword | -6/Factory | Extracted Imp. Cryofiber Web | -6/Factory | Extracted Combat Drone Bay | -6/Data Miner | Free Lgt. Regenerative Plating | -6/Data Miner | Free Enh. Armored Leg | -6/Data Miner | Free Prc. Matter Filter | -6/Data Miner | Free Hvy. Gatling Laser | -6/Data Miner | Free Imp. Gyrokinetic Inverter | -6/Data Miner | Free Adv. Transmission Jammer | -6/Data Miner | Free Force Lance | -6/Data Miner | Free Imp. Force Booster | -6/Data Miner | Free Railgun | -6/Data Miner | Free Linear Accelerator | -6/Data Miner | Free Adv. Hacking Suite | -4/Factory | Hacked Imp. Utility Shielding | -4/Factory | Hacked Adv. Surge Thruster | -4/Factory | Hacked Gravity Neutralizer | -4/Factory | Scanalyzed CPS Tube | -4/Factory | Scanalyzed Multitool | -4/Factory | Scanalyzed Quantum Reactor | -4/Factory | Hacked Lgt. Quantum Reactor | -4/Factory | Hacked Hdn. Centrium Leg | -4/Factory | Scanalyzed Cld. Q-thruster | -4/Factory | Scanalyzed Med. Armored Exoskeleton | -4/Factory | Hacked Imp. Powered Armor | -4/Factory | Hacked Graphene Brace | -4/Factory | Hacked Adv. Gravity Neutralizer | -4/Factory | Hacked Mic. Antimatter Reactor | -4/Factory | Hacked Quantum Shading Machine | -4/Factory | Hacked Exp. Power Amplifier | -4/Factory | Scanalyzed Cld. Cesium-ion Thruster | -4/Factory | Scanalyzed Hvy. Shield Leg | -4/Extension | Hacked Enh. Nova Cannon | -4/Hub_04(d) | Hacked Com. HERF Cannon | -4/Hub_04(d) | Hacked Femtoactuators | -3/Research | Hacked Exp. Signal Interpreter | -3/Research | Hacked Exp. Shield Generator | -3/Research | Hacked Nanosword | -3/Research | Hacked Exp. Q-thruster | -3/Research | Hacked Centrium Medium Armor Plating | -3/Research | Scanalyzed Hvy. Neutron Cannon | -3/Research | Extracted Seismic Detector | -3/Research | Extracted Falx | -3/Research | Extracted Adv. Focal Shield | -3/Research | Extracted Quantum Rifle | -3/Research | Extracted Exp. Actuator Array | -3/Armory | Hacked Zero-point Reactor | -3/Armory | Hacked Cmb. Linear Gravjet | -3/Armory | Hacked Exp. Core Analyzer | -2/Research | Hacked Adv. Force Booster | -2/Research | Hacked Adv. Particle Accelerator | -2/Research | Hacked Cld. Phase Cannon | -2/Research | Hacked Beam Splitter | -2/Research | Hacked Hvy. Tesla Rifle | -2/Section 7 | Archive Exp. Thermal Shield | -2/Section 7 | Archive Electron Diverter | -2/Section 7 | Archive Imp. Lightning Gun | -2/Section 7 | Archive Plasma Sword | -2/Section 7 | Archive Hvy. Dispersion Rifle | -2/Section 7 | Archive Imp. Matter Neutralizer | -2/Section 7 | Archive Cld. Antigrav System | -2/Section 7 | Archive Centrium Heavy Treads | -2/Section 7 | Archive Robot Schematics ------------------ S-27 Virus | -6/Data Miner | Free M-22 Extractor | -6/Data Miner | Free L-41 Fighter | -6/Data Miner | Free B-60 Warrior | -6/Data Miner | Free Y-64 Sentinel | -6/Data Miner | Free M-30 Cleanser | -6/Data Miner | Free O-32 Director | -4/Hub_04(d) | Hacked B-74 Champion | -2/Section 7 | Archive A-27 Freighter | -2/Section 7 | Archive R-06 Scavenger | -2/Section 7 | Archive Fabricated ------------ Adv. Hacking Suite | x1 | -4/Factory | Authchip Combat Drone Bay | x1 | -4/Factory Adv. Hacking Suite | x1 | -4/Factory Quantum Shading Machine | x1 | -4/Factory Cld. Q-thruster | x1 | -4/Factory | Authchip Cld. Q-thruster | x1 | -4/Factory | Authchip Quantum Shading Machine | x1 | -4/Factory Cld. Q-thruster | x1 | -3/Research | Authchip Femtoactuators | x1 | -3/Research | Authchip Nanosword | x1 | -3/Research Nanosword | x1 | -3/Research Nanosword | x1 | -3/Research Exp. Actuator Array | x1 | -3/Armory Zero-point Reactor | x1 | -2/Research | Authchip Exp. Q-thruster | x1 | -2/Research | Authchip Exp. Actuator Array | x1 | -2/Research | Authchip Imp. Utility Shielding | x2 | -2/Research | Authchip Zero-point Reactor | x1 | -2/Research | Authchip Exp. Q-thruster | x1 | -1/Access Repaired ---------- Exp. Sensor Array | 58% | -4/Factory | Broken Cld. Cesium-ion Thruster | 97% | -4/Factory | Broken Exp. Sensor Array | 13% | -3/Research Quantum Reactor | 26% | -3/Research Cld. Impulse Thruster | 66% | -3/Research Cld. Cesium-ion Thruster | 75% | -3/Research Com. Particle Reactor | 5% | -2/Quarantine Alien Tech Used ----------------- Core Regenerator Integrated Mediator Transdimensional Reconstructor Phase Redirector Dimensional Node Initializer Phase Armor Core Cannon Subatomic Replicator Integrity Redistributor LRC Energy Well Integrated Dissipator Sigix Terminator Achievements -------------- WMD Challenges ------------ None Game ------ Seed FlightSmartbombExpander Manual? 0 Play Time 07:45:21 Cumulative 563.2 hours Start 2024.11.16 @ 14:51:11 End 2024.11.17 @ 02:45:47 Sessions 3 Manual Loads 0 Difficulty Rogue Special Mode None Game No. 214 Rogue 209 Adventurer 4 Explorer 1 Win Type 0 Total 9 Types 6/1/0/1/0/1/0/0/0 Lore% 90 Gallery% 92 Achievement% 87 Wizard Run 0 Options --------- Layout 0 ASCII 0 Keyboard 0 Movement Numpad Keybinds 0 Fullscreen 2 Font 18/CogNarrow Map View 76x50 Zoom Use 0% Tactical HUD 1 Map Filters NONE Filters NONE Steam 1 RUN: 4347dbda-e99a-4266-aee0-7aa2b9b3ae93